{"text_format":"3","workbook":"xlsx","n_sheets":4,"sheets":["SOUHRN ROZPOČTU OD ZAČÁTKU ROKU","SOUHRN MĚSÍČNÍCH VÝDAJŮ","PODROBNÝ ROZPIS VÝDAJŮ","CHARITA A SPONZORSKÉ DARY"],"not_rendered":{"defined_names":15},"read":"whole","date_system":"1900"}

{"sheet":"SOUHRN ROZPOČTU OD ZAČÁTKU ROKU","index":0,"n_rows":17,"n_cols":7,"rows_kept":17,"merged":[[1,1,1,4]]}
[null,"SOUHRN MĚSÍČNÍCH VÝDAJŮ"]
[null,"SKUTEČNOST vs. ROZPOČET OD ZAČÁTKU ROKU",{"$nulls":3},"rok",{"$f":"YEAR(TODAY())","v":2019}]
[]
[null,"Účetní kód","Název účtu","Skutečnost","Rozpočet","Zbývající Kč","Zbývá v %"]
[null,1000,"Reklama",{"$f":"SUMIF(SouhrnMěsíčníchVýdajů[Účetní kód],TabulkaOdZačátkuRoku[[#This Row],[Účetní kód]],SouhrnMěsíčníchVýdajů[Celkem])","v":{"v":0,"d":"0.00 Kč"}},{"v":100000,"d":"100,000.00 Kč"},{"$f":"IF(TabulkaOdZačátkuRoku[[#This Row],[Rozpočet]]=\"\",\"\",TabulkaOdZačátkuRoku[[#This Row],[Rozpočet]]-TabulkaOdZačátkuRoku[[#This Row],[Skutečnost]])","v":{"v":100000,"d":"100,000.00 Kč"}},{"$f":"IFERROR(TabulkaOdZačátkuRoku[[#This Row],[Zbývající Kč]]/TabulkaOdZačátkuRoku[[#This Row],[Rozpočet]],\"\")","v":{"v":1,"d":"100.00%"}}]
[null,2000,"Kancelářská technika",{"$f":"SUMIF(SouhrnMěsíčníchVýdajů[Účetní kód],TabulkaOdZačátkuRoku[[#This Row],[Účetní kód]],SouhrnMěsíčníchVýdajů[Celkem])","v":{"v":0,"d":"0.00 Kč"}},{"v":100000,"d":"100,000.00 Kč"},{"$f":"IF(TabulkaOdZačátkuRoku[[#This Row],[Rozpočet]]=\"\",\"\",TabulkaOdZačátkuRoku[[#This Row],[Rozpočet]]-TabulkaOdZačátkuRoku[[#This Row],[Skutečnost]])","v":{"v":100000,"d":"100,000.00 Kč"}},{"$f":"IFERROR(TabulkaOdZačátkuRoku[[#This Row],[Zbývající Kč]]/TabulkaOdZačátkuRoku[[#This Row],[Rozpočet]],\"\")","v":{"v":1,"d":"100.00%"}}]
[null,3000,"Tiskárny",{"$f":"SUMIF(SouhrnMěsíčníchVýdajů[Účetní kód],TabulkaOdZačátkuRoku[[#This Row],[Účetní kód]],SouhrnMěsíčníchVýdajů[Celkem])","v":{"v":0,"d":"0.00 Kč"}},{"v":100000,"d":"100,000.00 Kč"},{"$f":"IF(TabulkaOdZačátkuRoku[[#This Row],[Rozpočet]]=\"\",\"\",TabulkaOdZačátkuRoku[[#This Row],[Rozpočet]]-TabulkaOdZačátkuRoku[[#This Row],[Skutečnost]])","v":{"v":100000,"d":"100,000.00 Kč"}},{"$f":"IFERROR(TabulkaOdZačátkuRoku[[#This Row],[Zbývající Kč]]/TabulkaOdZačátkuRoku[[#This Row],[Rozpočet]],\"\")","v":{"v":1,"d":"100.00%"}}]
[null,4000,"Náklady na server",{"$f":"SUMIF(SouhrnMěsíčníchVýdajů[Účetní kód],TabulkaOdZačátkuRoku[[#This Row],[Účetní kód]],SouhrnMěsíčníchVýdajů[Celkem])","v":{"v":0,"d":"0.00 Kč"}},{"v":100000,"d":"100,000.00 Kč"},{"$f":"IF(TabulkaOdZačátkuRoku[[#This Row],[Rozpočet]]=\"\",\"\",TabulkaOdZačátkuRoku[[#This Row],[Rozpočet]]-TabulkaOdZačátkuRoku[[#This Row],[Skutečnost]])","v":{"v":100000,"d":"100,000.00 Kč"}},{"$f":"IFERROR(TabulkaOdZačátkuRoku[[#This Row],[Zbývající Kč]]/TabulkaOdZačátkuRoku[[#This Row],[Rozpočet]],\"\")","v":{"v":1,"d":"100.00%"}}]
[null,5000,"Kancelářské potřeby",{"$f":"SUMIF(SouhrnMěsíčníchVýdajů[Účetní kód],TabulkaOdZačátkuRoku[[#This Row],[Účetní kód]],SouhrnMěsíčníchVýdajů[Celkem])","v":{"v":0,"d":"0.00 Kč"}},{"v":50000,"d":"50,000.00 Kč"},{"$f":"IF(TabulkaOdZačátkuRoku[[#This Row],[Rozpočet]]=\"\",\"\",TabulkaOdZačátkuRoku[[#This Row],[Rozpočet]]-TabulkaOdZačátkuRoku[[#This Row],[Skutečnost]])","v":{"v":50000,"d":"50,000.00 Kč"}},{"$f":"IFERROR(TabulkaOdZačátkuRoku[[#This Row],[Zbývající Kč]]/TabulkaOdZačátkuRoku[[#This Row],[Rozpočet]],\"\")","v":{"v":1,"d":"100.00%"}}]
[null,6000,"Výdaje na klienty",{"$f":"SUMIF(SouhrnMěsíčníchVýdajů[Účetní kód],TabulkaOdZačátkuRoku[[#This Row],[Účetní kód]],SouhrnMěsíčníchVýdajů[Celkem])","v":{"v":0,"d":"0.00 Kč"}},{"v":25000,"d":"25,000.00 Kč"},{"$f":"IF(TabulkaOdZačátkuRoku[[#This Row],[Rozpočet]]=\"\",\"\",TabulkaOdZačátkuRoku[[#This Row],[Rozpočet]]-TabulkaOdZačátkuRoku[[#This Row],[Skutečnost]])","v":{"v":25000,"d":"25,000.00 Kč"}},{"$f":"IFERROR(TabulkaOdZačátkuRoku[[#This Row],[Zbývající Kč]]/TabulkaOdZačátkuRoku[[#This Row],[Rozpočet]],\"\")","v":{"v":1,"d":"100.00%"}}]
[null,7000,"Počítače",{"$f":"SUMIF(SouhrnMěsíčníchVýdajů[Účetní kód],TabulkaOdZačátkuRoku[[#This Row],[Účetní kód]],SouhrnMěsíčníchVýdajů[Celkem])","v":{"v":0,"d":"0.00 Kč"}},{"v":75000,"d":"75,000.00 Kč"},{"$f":"IF(TabulkaOdZačátkuRoku[[#This Row],[Rozpočet]]=\"\",\"\",TabulkaOdZačátkuRoku[[#This Row],[Rozpočet]]-TabulkaOdZačátkuRoku[[#This Row],[Skutečnost]])","v":{"v":75000,"d":"75,000.00 Kč"}},{"$f":"IFERROR(TabulkaOdZačátkuRoku[[#This Row],[Zbývající Kč]]/TabulkaOdZačátkuRoku[[#This Row],[Rozpočet]],\"\")","v":{"v":1,"d":"100.00%"}}]
[null,8000,"Zdravotní pojištění",{"$f":"SUMIF(SouhrnMěsíčníchVýdajů[Účetní kód],TabulkaOdZačátkuRoku[[#This Row],[Účetní kód]],SouhrnMěsíčníchVýdajů[Celkem])","v":{"v":0,"d":"0.00 Kč"}},{"v":65000,"d":"65,000.00 Kč"},{"$f":"IF(TabulkaOdZačátkuRoku[[#This Row],[Rozpočet]]=\"\",\"\",TabulkaOdZačátkuRoku[[#This Row],[Rozpočet]]-TabulkaOdZačátkuRoku[[#This Row],[Skutečnost]])","v":{"v":65000,"d":"65,000.00 Kč"}},{"$f":"IFERROR(TabulkaOdZačátkuRoku[[#This Row],[Zbývající Kč]]/TabulkaOdZačátkuRoku[[#This Row],[Rozpočet]],\"\")","v":{"v":1,"d":"100.00%"}}]
[null,9000,"Stavební náklady",{"$f":"SUMIF(SouhrnMěsíčníchVýdajů[Účetní kód],TabulkaOdZačátkuRoku[[#This Row],[Účetní kód]],SouhrnMěsíčníchVýdajů[Celkem])","v":{"v":0,"d":"0.00 Kč"}},{"v":125000,"d":"125,000.00 Kč"},{"$f":"IF(TabulkaOdZačátkuRoku[[#This Row],[Rozpočet]]=\"\",\"\",TabulkaOdZačátkuRoku[[#This Row],[Rozpočet]]-TabulkaOdZačátkuRoku[[#This Row],[Skutečnost]])","v":{"v":125000,"d":"125,000.00 Kč"}},{"$f":"IFERROR(TabulkaOdZačátkuRoku[[#This Row],[Zbývající Kč]]/TabulkaOdZačátkuRoku[[#This Row],[Rozpočet]],\"\")","v":{"v":1,"d":"100.00%"}}]
[null,10000,"Marketing",{"$f":"SUMIF(SouhrnMěsíčníchVýdajů[Účetní kód],TabulkaOdZačátkuRoku[[#This Row],[Účetní kód]],SouhrnMěsíčníchVýdajů[Celkem])","v":{"v":0,"d":"0.00 Kč"}},{"v":100000,"d":"100,000.00 Kč"},{"$f":"IF(TabulkaOdZačátkuRoku[[#This Row],[Rozpočet]]=\"\",\"\",TabulkaOdZačátkuRoku[[#This Row],[Rozpočet]]-TabulkaOdZačátkuRoku[[#This Row],[Skutečnost]])","v":{"v":100000,"d":"100,000.00 Kč"}},{"$f":"IFERROR(TabulkaOdZačátkuRoku[[#This Row],[Zbývající Kč]]/TabulkaOdZačátkuRoku[[#This Row],[Rozpočet]],\"\")","v":{"v":1,"d":"100.00%"}}]
[null,11000,"Charita",{"$f":"SUMIF(SouhrnMěsíčníchVýdajů[Účetní kód],TabulkaOdZačátkuRoku[[#This Row],[Účetní kód]],SouhrnMěsíčníchVýdajů[Celkem])","v":{"v":0,"d":"0.00 Kč"}},{"v":250000,"d":"250,000.00 Kč"},{"$f":"IF(TabulkaOdZačátkuRoku[[#This Row],[Rozpočet]]=\"\",\"\",TabulkaOdZačátkuRoku[[#This Row],[Rozpočet]]-TabulkaOdZačátkuRoku[[#This Row],[Skutečnost]])","v":{"v":250000,"d":"250,000.00 Kč"}},{"$f":"IFERROR(TabulkaOdZačátkuRoku[[#This Row],[Zbývající Kč]]/TabulkaOdZačátkuRoku[[#This Row],[Rozpočet]],\"\")","v":{"v":1,"d":"100.00%"}}]
[null,12000,"Sponzorské dary",{"$f":"SUMIF(SouhrnMěsíčníchVýdajů[Účetní kód],TabulkaOdZačátkuRoku[[#This Row],[Účetní kód]],SouhrnMěsíčníchVýdajů[Celkem])","v":{"v":0,"d":"0.00 Kč"}},{"v":50000,"d":"50,000.00 Kč"},{"$f":"IF(TabulkaOdZačátkuRoku[[#This Row],[Rozpočet]]=\"\",\"\",TabulkaOdZačátkuRoku[[#This Row],[Rozpočet]]-TabulkaOdZačátkuRoku[[#This Row],[Skutečnost]])","v":{"v":50000,"d":"50,000.00 Kč"}},{"$f":"IFERROR(TabulkaOdZačátkuRoku[[#This Row],[Zbývající Kč]]/TabulkaOdZačátkuRoku[[#This Row],[Rozpočet]],\"\")","v":{"v":1,"d":"100.00%"}}]
[null,"Celkem",null,{"$f":"SUBTOTAL(109,TabulkaOdZačátkuRoku[Skutečnost])","v":{"v":0,"d":"0.00 Kč"}},{"$f":"SUBTOTAL(109,TabulkaOdZačátkuRoku[Rozpočet])","v":{"v":1140000,"d":"1,140,000.00 Kč"}},{"$f":"SUBTOTAL(109,TabulkaOdZačátkuRoku[Zbývající Kč])","v":{"v":1140000,"d":"1,140,000.00 Kč"}},{"$f":"TabulkaOdZačátkuRoku[[#Totals],[Zbývající Kč]]/TabulkaOdZačátkuRoku[[#Totals],[Rozpočet]]","v":{"v":1,"d":"100.00%"}}]

{"sheet":"SOUHRN MĚSÍČNÍCH VÝDAJŮ","index":1,"n_rows":18,"n_cols":17,"rows_kept":18,"merged":[[1,1,1,16]]}
[null,"SOUHRN ROZPOČTU OD ZAČÁTKU ROKU","PODROBNÝ ROZPIS VÝDAJŮ"]
[null,"SOUHRN MĚSÍČNÍCH VÝDAJŮ"]
[null,"V této buňce je průřez k filtrování dat podle názvu účtu.",null,{"$f":"DATEVALUE(\"1-leden\"&_ROK)","v":{"v":43466,"d":"4346600.00%"}},{"$f":"DATEVALUE(\"1-únor\"&_ROK)","v":{"v":43497,"d":"4349700.00%"}},{"$f":"DATEVALUE(\"1-březen\"&_ROK)","v":{"v":43525,"d":"4352500.00%"}},{"$f":"DATEVALUE(\"1-duben\"&_ROK)","v":{"v":43556,"d":"4355600.00%"}},{"$f":"DATEVALUE(\"1-květen\"&_ROK)","v":{"v":43586,"d":"4358600.00%"}},{"$f":"DATEVALUE(\"1-červen\"&_ROK)","v":{"v":43617,"d":"4361700.00%"}},{"$f":"DATEVALUE(\"1-červenec\"&_ROK)","v":{"v":43647,"d":"4364700.00%"}},{"$f":"DATEVALUE(\"1-srpen\"&_ROK)","v":{"v":43678,"d":"4367800.00%"}},{"$f":"DATEVALUE(\"1-září\"&_ROK)","v":{"v":43709,"d":"4370900.00%"}},{"$f":"DATEVALUE(\"1-říjen\"&_ROK)","v":{"v":43739,"d":"4373900.00%"}},{"$f":"DATEVALUE(\"1-listopad\"&_ROK)","v":{"v":43770,"d":"4377000.00%"}},{"$f":"DATEVALUE(\"1-prosinec\"&_ROK)","v":{"v":43800,"d":"4380000.00%"}}]
[{"$nulls":3},{"$f":"EOMONTH(D3,0)","v":{"v":43496,"d":"4349600.00%"}},{"$f":"EOMONTH(E3,0)","v":{"v":43524,"d":"4352400.00%"}},{"$f":"EOMONTH(F3,0)","v":{"v":43555,"d":"4355500.00%"}},{"$f":"EOMONTH(G3,0)","v":{"v":43585,"d":"4358500.00%"}},{"$f":"EOMONTH(H3,0)","v":{"v":43616,"d":"4361600.00%"}},{"$f":"EOMONTH(I3,0)","v":{"v":43646,"d":"4364600.00%"}},{"v":43677,"d":"4367700.00%"},{"v":43708,"d":"4370800.00%"},{"v":43738,"d":"4373800.00%"},{"v":43769,"d":"4376900.00%"},{"v":43799,"d":"4379900.00%"},{"v":43830,"d":"4383000.00%"}]
[null,"Účetní kód","Název účtu","Leden","Únor","Březen","Duben","Květen","Červen","Červenec","Srpen","Září","Říjen","Listopad","Prosinec","Celkem"," "]
[null,1000,"Reklama",{"$f":"SUMIFS(PodrobnýRozpisVýdajů[Zaplacená částka],PodrobnýRozpisVýdajů[Účetní kód],SouhrnMěsíčníchVýdajů[[#This Row],[Účetní kód]],PodrobnýRozpisVýdajů[Datum fakturace],\">=\"&D$3,PodrobnýRozpisVýdajů[Datum fakturace],\"<=\"&D$4)+SUMIFS(Jiné[Zaplacená částka],Jiné[Účetní kód],SouhrnMěsíčníchVýdajů[[#This Row],[Účetní kód]],Jiné[Datum vyžádání částky],\">=\"&DATEVALUE(\"1.\"&SouhrnMěsíčníchVýdajů[[#Headers],[Leden]]&_xlfn.SINGLE(_ROK)),Jiné[Datum vyžádání částky],\"<=\"&D$4)","v":{"v":0,"d":"0.00 Kč"}},{"$f":"SUMIFS(PodrobnýRozpisVýdajů[Zaplacená částka],PodrobnýRozpisVýdajů[Účetní kód],SouhrnMěsíčníchVýdajů[[#This Row],[Účetní kód]],PodrobnýRozpisVýdajů[Datum fakturace],\">=\"&E$3,PodrobnýRozpisVýdajů[Datum fakturace],\"<=\"&E$4)+SUMIFS(Jiné[Zaplacená částka],Jiné[Účetní kód],SouhrnMěsíčníchVýdajů[[#This Row],[Účetní kód]],Jiné[Datum vyžádání částky],\">=\"&DATEVALUE(\"1.\"&SouhrnMěsíčníchVýdajů[[#Headers],[Únor]]&_xlfn.SINGLE(_ROK)),Jiné[Datum vyžádání částky],\"<=\"&E$4)","v":{"v":0,"d":"0.00 Kč"}},{"$f":"SUMIFS(PodrobnýRozpisVýdajů[Zaplacená částka],PodrobnýRozpisVýdajů[Účetní kód],SouhrnMěsíčníchVýdajů[[#This Row],[Účetní kód]],PodrobnýRozpisVýdajů[Datum fakturace],\">=\"&F$3,PodrobnýRozpisVýdajů[Datum fakturace],\"<=\"&F$4)+SUMIFS(Jiné[Zaplacená částka],Jiné[Účetní kód],SouhrnMěsíčníchVýdajů[[#This Row],[Účetní kód]],Jiné[Datum vyžádání částky],\">=\"&DATEVALUE(\"1.\"&SouhrnMěsíčníchVýdajů[[#Headers],[Březen]]&_xlfn.SINGLE(_ROK)),Jiné[Datum vyžádání částky],\"<=\"&F$4)","v":{"v":0,"d":"0.00 Kč"}},{"$f":"SUMIFS(PodrobnýRozpisVýdajů[Zaplacená částka],PodrobnýRozpisVýdajů[Účetní kód],SouhrnMěsíčníchVýdajů[[#This Row],[Účetní kód]],PodrobnýRozpisVýdajů[Datum fakturace],\">=\"&G$3,PodrobnýRozpisVýdajů[Datum fakturace],\"<=\"&G$4)+SUMIFS(Jiné[Zaplacená částka],Jiné[Účetní kód],SouhrnMěsíčníchVýdajů[[#This Row],[Účetní kód]],Jiné[Datum vyžádání částky],\">=\"&DATEVALUE(\"1.\"&SouhrnMěsíčníchVýdajů[[#Headers],[Duben]]&_xlfn.SINGLE(_ROK)),Jiné[Datum vyžádání částky],\"<=\"&G$4)","v":{"v":0,"d":"0.00 Kč"}},{"$f":"SUMIFS(PodrobnýRozpisVýdajů[Zaplacená částka],PodrobnýRozpisVýdajů[Účetní kód],SouhrnMěsíčníchVýdajů[[#This Row],[Účetní kód]],PodrobnýRozpisVýdajů[Datum fakturace],\">=\"&H$3,PodrobnýRozpisVýdajů[Datum fakturace],\"<=\"&H$4)+SUMIFS(Jiné[Zaplacená částka],Jiné[Účetní kód],SouhrnMěsíčníchVýdajů[[#This Row],[Účetní kód]],Jiné[Datum vyžádání částky],\">=\"&DATEVALUE(\"1.\"&SouhrnMěsíčníchVýdajů[[#Headers],[Květen]]&_xlfn.SINGLE(_ROK)),Jiné[Datum vyžádání částky],\"<=\"&H$4)","v":{"v":0,"d":"0.00 Kč"}},{"$f":"SUMIFS(PodrobnýRozpisVýdajů[Zaplacená částka],PodrobnýRozpisVýdajů[Účetní kód],SouhrnMěsíčníchVýdajů[[#This Row],[Účetní kód]],PodrobnýRozpisVýdajů[Datum fakturace],\">=\"&I$3,PodrobnýRozpisVýdajů[Datum fakturace],\"<=\"&I$4)+SUMIFS(Jiné[Zaplacená částka],Jiné[Účetní kód],SouhrnMěsíčníchVýdajů[[#This Row],[Účetní kód]],Jiné[Datum vyžádání částky],\">=\"&DATEVALUE(\"1.\"&SouhrnMěsíčníchVýdajů[[#Headers],[Červen]]&_xlfn.SINGLE(_ROK)),Jiné[Datum vyžádání částky],\"<=\"&I$4)","v":{"v":0,"d":"0.00 Kč"}},{"$f":"SUMIFS(PodrobnýRozpisVýdajů[Zaplacená částka],PodrobnýRozpisVýdajů[Účetní kód],SouhrnMěsíčníchVýdajů[[#This Row],[Účetní kód]],PodrobnýRozpisVýdajů[Datum fakturace],\">=\"&J$3,PodrobnýRozpisVýdajů[Datum fakturace],\"<=\"&J$4)+SUMIFS(Jiné[Zaplacená částka],Jiné[Účetní kód],SouhrnMěsíčníchVýdajů[[#This Row],[Účetní kód]],Jiné[Datum vyžádání částky],\">=\"&DATEVALUE(\"1.\"&SouhrnMěsíčníchVýdajů[[#Headers],[Červenec]]&_xlfn.SINGLE(_ROK)),Jiné[Datum vyžádání částky],\"<=\"&J$4)","v":{"v":0,"d":"0.00 Kč"}},{"$f":"SUMIFS(PodrobnýRozpisVýdajů[Zaplacená částka],PodrobnýRozpisVýdajů[Účetní kód],SouhrnMěsíčníchVýdajů[[#This Row],[Účetní kód]],PodrobnýRozpisVýdajů[Datum fakturace],\">=\"&K$3,PodrobnýRozpisVýdajů[Datum fakturace],\"<=\"&K$4)+SUMIFS(Jiné[Zaplacená částka],Jiné[Účetní kód],SouhrnMěsíčníchVýdajů[[#This Row],[Účetní kód]],Jiné[Datum vyžádání částky],\">=\"&DATEVALUE(\"1.\"&SouhrnMěsíčníchVýdajů[[#Headers],[Srpen]]&_xlfn.SINGLE(_ROK)),Jiné[Datum vyžádání částky],\"<=\"&K$4)","v":{"v":0,"d":"0.00 Kč"}},{"$f":"SUMIFS(PodrobnýRozpisVýdajů[Zaplacená částka],PodrobnýRozpisVýdajů[Účetní kód],SouhrnMěsíčníchVýdajů[[#This Row],[Účetní kód]],PodrobnýRozpisVýdajů[Datum fakturace],\">=\"&L$3,PodrobnýRozpisVýdajů[Datum fakturace],\"<=\"&L$4)+SUMIFS(Jiné[Zaplacená částka],Jiné[Účetní kód],SouhrnMěsíčníchVýdajů[[#This Row],[Účetní kód]],Jiné[Datum vyžádání částky],\">=\"&DATEVALUE(\"1.\"&SouhrnMěsíčníchVýdajů[[#Headers],[Září]]&_xlfn.SINGLE(_ROK)),Jiné[Datum vyžádání částky],\"<=\"&L$4)","v":{"v":0,"d":"0.00 Kč"}},{"$f":"SUMIFS(PodrobnýRozpisVýdajů[Zaplacená částka],PodrobnýRozpisVýdajů[Účetní kód],SouhrnMěsíčníchVýdajů[[#This Row],[Účetní kód]],PodrobnýRozpisVýdajů[Datum fakturace],\">=\"&M$3,PodrobnýRozpisVýdajů[Datum fakturace],\"<=\"&M$4)+SUMIFS(Jiné[Zaplacená částka],Jiné[Účetní kód],SouhrnMěsíčníchVýdajů[[#This Row],[Účetní kód]],Jiné[Datum vyžádání částky],\">=\"&DATEVALUE(\"1.\"&SouhrnMěsíčníchVýdajů[[#Headers],[Říjen]]&_xlfn.SINGLE(_ROK)),Jiné[Datum vyžádání částky],\"<=\"&M$4)","v":{"v":0,"d":"0.00 Kč"}},{"$f":"SUMIFS(PodrobnýRozpisVýdajů[Zaplacená částka],PodrobnýRozpisVýdajů[Účetní kód],SouhrnMěsíčníchVýdajů[[#This Row],[Účetní kód]],PodrobnýRozpisVýdajů[Datum fakturace],\">=\"&N$3,PodrobnýRozpisVýdajů[Datum fakturace],\"<=\"&N$4)+SUMIFS(Jiné[Zaplacená částka],Jiné[Účetní kód],SouhrnMěsíčníchVýdajů[[#This Row],[Účetní kód]],Jiné[Datum vyžádání částky],\">=\"&DATEVALUE(\"1.\"&SouhrnMěsíčníchVýdajů[[#Headers],[Listopad]]&_xlfn.SINGLE(_ROK)),Jiné[Datum vyžádání částky],\"<=\"&N$4)","v":{"v":0,"d":"0.00 Kč"}},{"$f":"SUMIFS(PodrobnýRozpisVýdajů[Zaplacená částka],PodrobnýRozpisVýdajů[Účetní kód],SouhrnMěsíčníchVýdajů[[#This Row],[Účetní kód]],PodrobnýRozpisVýdajů[Datum fakturace],\">=\"&O$3,PodrobnýRozpisVýdajů[Datum fakturace],\"<=\"&O$4)+SUMIFS(Jiné[Zaplacená částka],Jiné[Účetní kód],SouhrnMěsíčníchVýdajů[[#This Row],[Účetní kód]],Jiné[Datum vyžádání částky],\">=\"&DATEVALUE(\"1.\"&SouhrnMěsíčníchVýdajů[[#Headers],[Prosinec]]&_xlfn.SINGLE(_ROK)),Jiné[Datum vyžádání částky],\"<=\"&O$4)","v":{"v":0,"d":"0.00 Kč"}},{"$f":"SUM(SouhrnMěsíčníchVýdajů[[#This Row],[Leden]:[Prosinec]])","v":{"v":0,"d":"0.00 Kč"}}]
[null,2000,"Kancelářská technika",{"$f":"SUMIFS(PodrobnýRozpisVýdajů[Zaplacená částka],PodrobnýRozpisVýdajů[Účetní kód],SouhrnMěsíčníchVýdajů[[#This Row],[Účetní kód]],PodrobnýRozpisVýdajů[Datum fakturace],\">=\"&D$3,PodrobnýRozpisVýdajů[Datum fakturace],\"<=\"&D$4)+SUMIFS(Jiné[Zaplacená částka],Jiné[Účetní kód],SouhrnMěsíčníchVýdajů[[#This Row],[Účetní kód]],Jiné[Datum vyžádání částky],\">=\"&DATEVALUE(\"1.\"&SouhrnMěsíčníchVýdajů[[#Headers],[Leden]]&_xlfn.SINGLE(_ROK)),Jiné[Datum vyžádání částky],\"<=\"&D$4)","v":{"v":0,"d":"0.00 Kč"}},{"$f":"SUMIFS(PodrobnýRozpisVýdajů[Zaplacená částka],PodrobnýRozpisVýdajů[Účetní kód],SouhrnMěsíčníchVýdajů[[#This Row],[Účetní kód]],PodrobnýRozpisVýdajů[Datum fakturace],\">=\"&E$3,PodrobnýRozpisVýdajů[Datum fakturace],\"<=\"&E$4)+SUMIFS(Jiné[Zaplacená částka],Jiné[Účetní kód],SouhrnMěsíčníchVýdajů[[#This Row],[Účetní kód]],Jiné[Datum vyžádání částky],\">=\"&DATEVALUE(\"1.\"&SouhrnMěsíčníchVýdajů[[#Headers],[Únor]]&_xlfn.SINGLE(_ROK)),Jiné[Datum vyžádání částky],\"<=\"&E$4)","v":{"v":0,"d":"0.00 Kč"}},{"$f":"SUMIFS(PodrobnýRozpisVýdajů[Zaplacená částka],PodrobnýRozpisVýdajů[Účetní kód],SouhrnMěsíčníchVýdajů[[#This Row],[Účetní kód]],PodrobnýRozpisVýdajů[Datum fakturace],\">=\"&F$3,PodrobnýRozpisVýdajů[Datum fakturace],\"<=\"&F$4)+SUMIFS(Jiné[Zaplacená částka],Jiné[Účetní kód],SouhrnMěsíčníchVýdajů[[#This Row],[Účetní kód]],Jiné[Datum vyžádání částky],\">=\"&DATEVALUE(\"1.\"&SouhrnMěsíčníchVýdajů[[#Headers],[Březen]]&_xlfn.SINGLE(_ROK)),Jiné[Datum vyžádání částky],\"<=\"&F$4)","v":{"v":0,"d":"0.00 Kč"}},{"$f":"SUMIFS(PodrobnýRozpisVýdajů[Zaplacená částka],PodrobnýRozpisVýdajů[Účetní kód],SouhrnMěsíčníchVýdajů[[#This Row],[Účetní kód]],PodrobnýRozpisVýdajů[Datum fakturace],\">=\"&G$3,PodrobnýRozpisVýdajů[Datum fakturace],\"<=\"&G$4)+SUMIFS(Jiné[Zaplacená částka],Jiné[Účetní kód],SouhrnMěsíčníchVýdajů[[#This Row],[Účetní kód]],Jiné[Datum vyžádání částky],\">=\"&DATEVALUE(\"1.\"&SouhrnMěsíčníchVýdajů[[#Headers],[Duben]]&_xlfn.SINGLE(_ROK)),Jiné[Datum vyžádání částky],\"<=\"&G$4)","v":{"v":0,"d":"0.00 Kč"}},{"$f":"SUMIFS(PodrobnýRozpisVýdajů[Zaplacená částka],PodrobnýRozpisVýdajů[Účetní kód],SouhrnMěsíčníchVýdajů[[#This Row],[Účetní kód]],PodrobnýRozpisVýdajů[Datum fakturace],\">=\"&H$3,PodrobnýRozpisVýdajů[Datum fakturace],\"<=\"&H$4)+SUMIFS(Jiné[Zaplacená částka],Jiné[Účetní kód],SouhrnMěsíčníchVýdajů[[#This Row],[Účetní kód]],Jiné[Datum vyžádání částky],\">=\"&DATEVALUE(\"1.\"&SouhrnMěsíčníchVýdajů[[#Headers],[Květen]]&_xlfn.SINGLE(_ROK)),Jiné[Datum vyžádání částky],\"<=\"&H$4)","v":{"v":0,"d":"0.00 Kč"}},{"$f":"SUMIFS(PodrobnýRozpisVýdajů[Zaplacená částka],PodrobnýRozpisVýdajů[Účetní kód],SouhrnMěsíčníchVýdajů[[#This Row],[Účetní kód]],PodrobnýRozpisVýdajů[Datum fakturace],\">=\"&I$3,PodrobnýRozpisVýdajů[Datum fakturace],\"<=\"&I$4)+SUMIFS(Jiné[Zaplacená částka],Jiné[Účetní kód],SouhrnMěsíčníchVýdajů[[#This Row],[Účetní kód]],Jiné[Datum vyžádání částky],\">=\"&DATEVALUE(\"1.\"&SouhrnMěsíčníchVýdajů[[#Headers],[Červen]]&_xlfn.SINGLE(_ROK)),Jiné[Datum vyžádání částky],\"<=\"&I$4)","v":{"v":0,"d":"0.00 Kč"}},{"$f":"SUMIFS(PodrobnýRozpisVýdajů[Zaplacená částka],PodrobnýRozpisVýdajů[Účetní kód],SouhrnMěsíčníchVýdajů[[#This Row],[Účetní kód]],PodrobnýRozpisVýdajů[Datum fakturace],\">=\"&J$3,PodrobnýRozpisVýdajů[Datum fakturace],\"<=\"&J$4)+SUMIFS(Jiné[Zaplacená částka],Jiné[Účetní kód],SouhrnMěsíčníchVýdajů[[#This Row],[Účetní kód]],Jiné[Datum vyžádání částky],\">=\"&DATEVALUE(\"1.\"&SouhrnMěsíčníchVýdajů[[#Headers],[Červenec]]&_xlfn.SINGLE(_ROK)),Jiné[Datum vyžádání částky],\"<=\"&J$4)","v":{"v":0,"d":"0.00 Kč"}},{"$f":"SUMIFS(PodrobnýRozpisVýdajů[Zaplacená částka],PodrobnýRozpisVýdajů[Účetní kód],SouhrnMěsíčníchVýdajů[[#This Row],[Účetní kód]],PodrobnýRozpisVýdajů[Datum fakturace],\">=\"&K$3,PodrobnýRozpisVýdajů[Datum fakturace],\"<=\"&K$4)+SUMIFS(Jiné[Zaplacená částka],Jiné[Účetní kód],SouhrnMěsíčníchVýdajů[[#This Row],[Účetní kód]],Jiné[Datum vyžádání částky],\">=\"&DATEVALUE(\"1.\"&SouhrnMěsíčníchVýdajů[[#Headers],[Srpen]]&_xlfn.SINGLE(_ROK)),Jiné[Datum vyžádání částky],\"<=\"&K$4)","v":{"v":0,"d":"0.00 Kč"}},{"$f":"SUMIFS(PodrobnýRozpisVýdajů[Zaplacená částka],PodrobnýRozpisVýdajů[Účetní kód],SouhrnMěsíčníchVýdajů[[#This Row],[Účetní kód]],PodrobnýRozpisVýdajů[Datum fakturace],\">=\"&L$3,PodrobnýRozpisVýdajů[Datum fakturace],\"<=\"&L$4)+SUMIFS(Jiné[Zaplacená částka],Jiné[Účetní kód],SouhrnMěsíčníchVýdajů[[#This Row],[Účetní kód]],Jiné[Datum vyžádání částky],\">=\"&DATEVALUE(\"1.\"&SouhrnMěsíčníchVýdajů[[#Headers],[Září]]&_xlfn.SINGLE(_ROK)),Jiné[Datum vyžádání částky],\"<=\"&L$4)","v":{"v":0,"d":"0.00 Kč"}},{"$f":"SUMIFS(PodrobnýRozpisVýdajů[Zaplacená částka],PodrobnýRozpisVýdajů[Účetní kód],SouhrnMěsíčníchVýdajů[[#This Row],[Účetní kód]],PodrobnýRozpisVýdajů[Datum fakturace],\">=\"&M$3,PodrobnýRozpisVýdajů[Datum fakturace],\"<=\"&M$4)+SUMIFS(Jiné[Zaplacená částka],Jiné[Účetní kód],SouhrnMěsíčníchVýdajů[[#This Row],[Účetní kód]],Jiné[Datum vyžádání částky],\">=\"&DATEVALUE(\"1.\"&SouhrnMěsíčníchVýdajů[[#Headers],[Říjen]]&_xlfn.SINGLE(_ROK)),Jiné[Datum vyžádání částky],\"<=\"&M$4)","v":{"v":0,"d":"0.00 Kč"}},{"$f":"SUMIFS(PodrobnýRozpisVýdajů[Zaplacená částka],PodrobnýRozpisVýdajů[Účetní kód],SouhrnMěsíčníchVýdajů[[#This Row],[Účetní kód]],PodrobnýRozpisVýdajů[Datum fakturace],\">=\"&N$3,PodrobnýRozpisVýdajů[Datum fakturace],\"<=\"&N$4)+SUMIFS(Jiné[Zaplacená částka],Jiné[Účetní kód],SouhrnMěsíčníchVýdajů[[#This Row],[Účetní kód]],Jiné[Datum vyžádání částky],\">=\"&DATEVALUE(\"1.\"&SouhrnMěsíčníchVýdajů[[#Headers],[Listopad]]&_xlfn.SINGLE(_ROK)),Jiné[Datum vyžádání částky],\"<=\"&N$4)","v":{"v":0,"d":"0.00 Kč"}},{"$f":"SUMIFS(PodrobnýRozpisVýdajů[Zaplacená částka],PodrobnýRozpisVýdajů[Účetní kód],SouhrnMěsíčníchVýdajů[[#This Row],[Účetní kód]],PodrobnýRozpisVýdajů[Datum fakturace],\">=\"&O$3,PodrobnýRozpisVýdajů[Datum fakturace],\"<=\"&O$4)+SUMIFS(Jiné[Zaplacená částka],Jiné[Účetní kód],SouhrnMěsíčníchVýdajů[[#This Row],[Účetní kód]],Jiné[Datum vyžádání částky],\">=\"&DATEVALUE(\"1.\"&SouhrnMěsíčníchVýdajů[[#Headers],[Prosinec]]&_xlfn.SINGLE(_ROK)),Jiné[Datum vyžádání částky],\"<=\"&O$4)","v":{"v":0,"d":"0.00 Kč"}},{"$f":"SUM(SouhrnMěsíčníchVýdajů[[#This Row],[Leden]:[Prosinec]])","v":{"v":0,"d":"0.00 Kč"}}]
[null,3000,"Tiskárny",{"$f":"SUMIFS(PodrobnýRozpisVýdajů[Zaplacená částka],PodrobnýRozpisVýdajů[Účetní kód],SouhrnMěsíčníchVýdajů[[#This Row],[Účetní kód]],PodrobnýRozpisVýdajů[Datum fakturace],\">=\"&D$3,PodrobnýRozpisVýdajů[Datum fakturace],\"<=\"&D$4)+SUMIFS(Jiné[Zaplacená částka],Jiné[Účetní kód],SouhrnMěsíčníchVýdajů[[#This Row],[Účetní kód]],Jiné[Datum vyžádání částky],\">=\"&DATEVALUE(\"1.\"&SouhrnMěsíčníchVýdajů[[#Headers],[Leden]]&_xlfn.SINGLE(_ROK)),Jiné[Datum vyžádání částky],\"<=\"&D$4)","v":{"v":0,"d":"0.00 Kč"}},{"$f":"SUMIFS(PodrobnýRozpisVýdajů[Zaplacená částka],PodrobnýRozpisVýdajů[Účetní kód],SouhrnMěsíčníchVýdajů[[#This Row],[Účetní kód]],PodrobnýRozpisVýdajů[Datum fakturace],\">=\"&E$3,PodrobnýRozpisVýdajů[Datum fakturace],\"<=\"&E$4)+SUMIFS(Jiné[Zaplacená částka],Jiné[Účetní kód],SouhrnMěsíčníchVýdajů[[#This Row],[Účetní kód]],Jiné[Datum vyžádání částky],\">=\"&DATEVALUE(\"1.\"&SouhrnMěsíčníchVýdajů[[#Headers],[Únor]]&_xlfn.SINGLE(_ROK)),Jiné[Datum vyžádání částky],\"<=\"&E$4)","v":{"v":0,"d":"0.00 Kč"}},{"$f":"SUMIFS(PodrobnýRozpisVýdajů[Zaplacená částka],PodrobnýRozpisVýdajů[Účetní kód],SouhrnMěsíčníchVýdajů[[#This Row],[Účetní kód]],PodrobnýRozpisVýdajů[Datum fakturace],\">=\"&F$3,PodrobnýRozpisVýdajů[Datum fakturace],\"<=\"&F$4)+SUMIFS(Jiné[Zaplacená částka],Jiné[Účetní kód],SouhrnMěsíčníchVýdajů[[#This Row],[Účetní kód]],Jiné[Datum vyžádání částky],\">=\"&DATEVALUE(\"1.\"&SouhrnMěsíčníchVýdajů[[#Headers],[Březen]]&_xlfn.SINGLE(_ROK)),Jiné[Datum vyžádání částky],\"<=\"&F$4)","v":{"v":0,"d":"0.00 Kč"}},{"$f":"SUMIFS(PodrobnýRozpisVýdajů[Zaplacená částka],PodrobnýRozpisVýdajů[Účetní kód],SouhrnMěsíčníchVýdajů[[#This Row],[Účetní kód]],PodrobnýRozpisVýdajů[Datum fakturace],\">=\"&G$3,PodrobnýRozpisVýdajů[Datum fakturace],\"<=\"&G$4)+SUMIFS(Jiné[Zaplacená částka],Jiné[Účetní kód],SouhrnMěsíčníchVýdajů[[#This Row],[Účetní kód]],Jiné[Datum vyžádání částky],\">=\"&DATEVALUE(\"1.\"&SouhrnMěsíčníchVýdajů[[#Headers],[Duben]]&_xlfn.SINGLE(_ROK)),Jiné[Datum vyžádání částky],\"<=\"&G$4)","v":{"v":0,"d":"0.00 Kč"}},{"$f":"SUMIFS(PodrobnýRozpisVýdajů[Zaplacená částka],PodrobnýRozpisVýdajů[Účetní kód],SouhrnMěsíčníchVýdajů[[#This Row],[Účetní kód]],PodrobnýRozpisVýdajů[Datum fakturace],\">=\"&H$3,PodrobnýRozpisVýdajů[Datum fakturace],\"<=\"&H$4)+SUMIFS(Jiné[Zaplacená částka],Jiné[Účetní kód],SouhrnMěsíčníchVýdajů[[#This Row],[Účetní kód]],Jiné[Datum vyžádání částky],\">=\"&DATEVALUE(\"1.\"&SouhrnMěsíčníchVýdajů[[#Headers],[Květen]]&_xlfn.SINGLE(_ROK)),Jiné[Datum vyžádání částky],\"<=\"&H$4)","v":{"v":0,"d":"0.00 Kč"}},{"$f":"SUMIFS(PodrobnýRozpisVýdajů[Zaplacená částka],PodrobnýRozpisVýdajů[Účetní kód],SouhrnMěsíčníchVýdajů[[#This Row],[Účetní kód]],PodrobnýRozpisVýdajů[Datum fakturace],\">=\"&I$3,PodrobnýRozpisVýdajů[Datum fakturace],\"<=\"&I$4)+SUMIFS(Jiné[Zaplacená částka],Jiné[Účetní kód],SouhrnMěsíčníchVýdajů[[#This Row],[Účetní kód]],Jiné[Datum vyžádání částky],\">=\"&DATEVALUE(\"1.\"&SouhrnMěsíčníchVýdajů[[#Headers],[Červen]]&_xlfn.SINGLE(_ROK)),Jiné[Datum vyžádání částky],\"<=\"&I$4)","v":{"v":0,"d":"0.00 Kč"}},{"$f":"SUMIFS(PodrobnýRozpisVýdajů[Zaplacená částka],PodrobnýRozpisVýdajů[Účetní kód],SouhrnMěsíčníchVýdajů[[#This Row],[Účetní kód]],PodrobnýRozpisVýdajů[Datum fakturace],\">=\"&J$3,PodrobnýRozpisVýdajů[Datum fakturace],\"<=\"&J$4)+SUMIFS(Jiné[Zaplacená částka],Jiné[Účetní kód],SouhrnMěsíčníchVýdajů[[#This Row],[Účetní kód]],Jiné[Datum vyžádání částky],\">=\"&DATEVALUE(\"1.\"&SouhrnMěsíčníchVýdajů[[#Headers],[Červenec]]&_xlfn.SINGLE(_ROK)),Jiné[Datum vyžádání částky],\"<=\"&J$4)","v":{"v":0,"d":"0.00 Kč"}},{"$f":"SUMIFS(PodrobnýRozpisVýdajů[Zaplacená částka],PodrobnýRozpisVýdajů[Účetní kód],SouhrnMěsíčníchVýdajů[[#This Row],[Účetní kód]],PodrobnýRozpisVýdajů[Datum fakturace],\">=\"&K$3,PodrobnýRozpisVýdajů[Datum fakturace],\"<=\"&K$4)+SUMIFS(Jiné[Zaplacená částka],Jiné[Účetní kód],SouhrnMěsíčníchVýdajů[[#This Row],[Účetní kód]],Jiné[Datum vyžádání částky],\">=\"&DATEVALUE(\"1.\"&SouhrnMěsíčníchVýdajů[[#Headers],[Srpen]]&_xlfn.SINGLE(_ROK)),Jiné[Datum vyžádání částky],\"<=\"&K$4)","v":{"v":0,"d":"0.00 Kč"}},{"$f":"SUMIFS(PodrobnýRozpisVýdajů[Zaplacená částka],PodrobnýRozpisVýdajů[Účetní kód],SouhrnMěsíčníchVýdajů[[#This Row],[Účetní kód]],PodrobnýRozpisVýdajů[Datum fakturace],\">=\"&L$3,PodrobnýRozpisVýdajů[Datum fakturace],\"<=\"&L$4)+SUMIFS(Jiné[Zaplacená částka],Jiné[Účetní kód],SouhrnMěsíčníchVýdajů[[#This Row],[Účetní kód]],Jiné[Datum vyžádání částky],\">=\"&DATEVALUE(\"1.\"&SouhrnMěsíčníchVýdajů[[#Headers],[Září]]&_xlfn.SINGLE(_ROK)),Jiné[Datum vyžádání částky],\"<=\"&L$4)","v":{"v":0,"d":"0.00 Kč"}},{"$f":"SUMIFS(PodrobnýRozpisVýdajů[Zaplacená částka],PodrobnýRozpisVýdajů[Účetní kód],SouhrnMěsíčníchVýdajů[[#This Row],[Účetní kód]],PodrobnýRozpisVýdajů[Datum fakturace],\">=\"&M$3,PodrobnýRozpisVýdajů[Datum fakturace],\"<=\"&M$4)+SUMIFS(Jiné[Zaplacená částka],Jiné[Účetní kód],SouhrnMěsíčníchVýdajů[[#This Row],[Účetní kód]],Jiné[Datum vyžádání částky],\">=\"&DATEVALUE(\"1.\"&SouhrnMěsíčníchVýdajů[[#Headers],[Říjen]]&_xlfn.SINGLE(_ROK)),Jiné[Datum vyžádání částky],\"<=\"&M$4)","v":{"v":0,"d":"0.00 Kč"}},{"$f":"SUMIFS(PodrobnýRozpisVýdajů[Zaplacená částka],PodrobnýRozpisVýdajů[Účetní kód],SouhrnMěsíčníchVýdajů[[#This Row],[Účetní kód]],PodrobnýRozpisVýdajů[Datum fakturace],\">=\"&N$3,PodrobnýRozpisVýdajů[Datum fakturace],\"<=\"&N$4)+SUMIFS(Jiné[Zaplacená částka],Jiné[Účetní kód],SouhrnMěsíčníchVýdajů[[#This Row],[Účetní kód]],Jiné[Datum vyžádání částky],\">=\"&DATEVALUE(\"1.\"&SouhrnMěsíčníchVýdajů[[#Headers],[Listopad]]&_xlfn.SINGLE(_ROK)),Jiné[Datum vyžádání částky],\"<=\"&N$4)","v":{"v":0,"d":"0.00 Kč"}},{"$f":"SUMIFS(PodrobnýRozpisVýdajů[Zaplacená částka],PodrobnýRozpisVýdajů[Účetní kód],SouhrnMěsíčníchVýdajů[[#This Row],[Účetní kód]],PodrobnýRozpisVýdajů[Datum fakturace],\">=\"&O$3,PodrobnýRozpisVýdajů[Datum fakturace],\"<=\"&O$4)+SUMIFS(Jiné[Zaplacená částka],Jiné[Účetní kód],SouhrnMěsíčníchVýdajů[[#This Row],[Účetní kód]],Jiné[Datum vyžádání částky],\">=\"&DATEVALUE(\"1.\"&SouhrnMěsíčníchVýdajů[[#Headers],[Prosinec]]&_xlfn.SINGLE(_ROK)),Jiné[Datum vyžádání částky],\"<=\"&O$4)","v":{"v":0,"d":"0.00 Kč"}},{"$f":"SUM(SouhrnMěsíčníchVýdajů[[#This Row],[Leden]:[Prosinec]])","v":{"v":0,"d":"0.00 Kč"}}]
[null,4000,"Náklady na server",{"$f":"SUMIFS(PodrobnýRozpisVýdajů[Zaplacená částka],PodrobnýRozpisVýdajů[Účetní kód],SouhrnMěsíčníchVýdajů[[#This Row],[Účetní kód]],PodrobnýRozpisVýdajů[Datum fakturace],\">=\"&D$3,PodrobnýRozpisVýdajů[Datum fakturace],\"<=\"&D$4)+SUMIFS(Jiné[Zaplacená částka],Jiné[Účetní kód],SouhrnMěsíčníchVýdajů[[#This Row],[Účetní kód]],Jiné[Datum vyžádání částky],\">=\"&DATEVALUE(\"1.\"&SouhrnMěsíčníchVýdajů[[#Headers],[Leden]]&_xlfn.SINGLE(_ROK)),Jiné[Datum vyžádání částky],\"<=\"&D$4)","v":{"v":0,"d":"0.00 Kč"}},{"$f":"SUMIFS(PodrobnýRozpisVýdajů[Zaplacená částka],PodrobnýRozpisVýdajů[Účetní kód],SouhrnMěsíčníchVýdajů[[#This Row],[Účetní kód]],PodrobnýRozpisVýdajů[Datum fakturace],\">=\"&E$3,PodrobnýRozpisVýdajů[Datum fakturace],\"<=\"&E$4)+SUMIFS(Jiné[Zaplacená částka],Jiné[Účetní kód],SouhrnMěsíčníchVýdajů[[#This Row],[Účetní kód]],Jiné[Datum vyžádání částky],\">=\"&DATEVALUE(\"1.\"&SouhrnMěsíčníchVýdajů[[#Headers],[Únor]]&_xlfn.SINGLE(_ROK)),Jiné[Datum vyžádání částky],\"<=\"&E$4)","v":{"v":0,"d":"0.00 Kč"}},{"$f":"SUMIFS(PodrobnýRozpisVýdajů[Zaplacená částka],PodrobnýRozpisVýdajů[Účetní kód],SouhrnMěsíčníchVýdajů[[#This Row],[Účetní kód]],PodrobnýRozpisVýdajů[Datum fakturace],\">=\"&F$3,PodrobnýRozpisVýdajů[Datum fakturace],\"<=\"&F$4)+SUMIFS(Jiné[Zaplacená částka],Jiné[Účetní kód],SouhrnMěsíčníchVýdajů[[#This Row],[Účetní kód]],Jiné[Datum vyžádání částky],\">=\"&DATEVALUE(\"1.\"&SouhrnMěsíčníchVýdajů[[#Headers],[Březen]]&_xlfn.SINGLE(_ROK)),Jiné[Datum vyžádání částky],\"<=\"&F$4)","v":{"v":0,"d":"0.00 Kč"}},{"$f":"SUMIFS(PodrobnýRozpisVýdajů[Zaplacená částka],PodrobnýRozpisVýdajů[Účetní kód],SouhrnMěsíčníchVýdajů[[#This Row],[Účetní kód]],PodrobnýRozpisVýdajů[Datum fakturace],\">=\"&G$3,PodrobnýRozpisVýdajů[Datum fakturace],\"<=\"&G$4)+SUMIFS(Jiné[Zaplacená částka],Jiné[Účetní kód],SouhrnMěsíčníchVýdajů[[#This Row],[Účetní kód]],Jiné[Datum vyžádání částky],\">=\"&DATEVALUE(\"1.\"&SouhrnMěsíčníchVýdajů[[#Headers],[Duben]]&_xlfn.SINGLE(_ROK)),Jiné[Datum vyžádání částky],\"<=\"&G$4)","v":{"v":0,"d":"0.00 Kč"}},{"$f":"SUMIFS(PodrobnýRozpisVýdajů[Zaplacená částka],PodrobnýRozpisVýdajů[Účetní kód],SouhrnMěsíčníchVýdajů[[#This Row],[Účetní kód]],PodrobnýRozpisVýdajů[Datum fakturace],\">=\"&H$3,PodrobnýRozpisVýdajů[Datum fakturace],\"<=\"&H$4)+SUMIFS(Jiné[Zaplacená částka],Jiné[Účetní kód],SouhrnMěsíčníchVýdajů[[#This Row],[Účetní kód]],Jiné[Datum vyžádání částky],\">=\"&DATEVALUE(\"1.\"&SouhrnMěsíčníchVýdajů[[#Headers],[Květen]]&_xlfn.SINGLE(_ROK)),Jiné[Datum vyžádání částky],\"<=\"&H$4)","v":{"v":0,"d":"0.00 Kč"}},{"$f":"SUMIFS(PodrobnýRozpisVýdajů[Zaplacená částka],PodrobnýRozpisVýdajů[Účetní kód],SouhrnMěsíčníchVýdajů[[#This Row],[Účetní kód]],PodrobnýRozpisVýdajů[Datum fakturace],\">=\"&I$3,PodrobnýRozpisVýdajů[Datum fakturace],\"<=\"&I$4)+SUMIFS(Jiné[Zaplacená částka],Jiné[Účetní kód],SouhrnMěsíčníchVýdajů[[#This Row],[Účetní kód]],Jiné[Datum vyžádání částky],\">=\"&DATEVALUE(\"1.\"&SouhrnMěsíčníchVýdajů[[#Headers],[Červen]]&_xlfn.SINGLE(_ROK)),Jiné[Datum vyžádání částky],\"<=\"&I$4)","v":{"v":0,"d":"0.00 Kč"}},{"$f":"SUMIFS(PodrobnýRozpisVýdajů[Zaplacená částka],PodrobnýRozpisVýdajů[Účetní kód],SouhrnMěsíčníchVýdajů[[#This Row],[Účetní kód]],PodrobnýRozpisVýdajů[Datum fakturace],\">=\"&J$3,PodrobnýRozpisVýdajů[Datum fakturace],\"<=\"&J$4)+SUMIFS(Jiné[Zaplacená částka],Jiné[Účetní kód],SouhrnMěsíčníchVýdajů[[#This Row],[Účetní kód]],Jiné[Datum vyžádání částky],\">=\"&DATEVALUE(\"1.\"&SouhrnMěsíčníchVýdajů[[#Headers],[Červenec]]&_xlfn.SINGLE(_ROK)),Jiné[Datum vyžádání částky],\"<=\"&J$4)","v":{"v":0,"d":"0.00 Kč"}},{"$f":"SUMIFS(PodrobnýRozpisVýdajů[Zaplacená částka],PodrobnýRozpisVýdajů[Účetní kód],SouhrnMěsíčníchVýdajů[[#This Row],[Účetní kód]],PodrobnýRozpisVýdajů[Datum fakturace],\">=\"&K$3,PodrobnýRozpisVýdajů[Datum fakturace],\"<=\"&K$4)+SUMIFS(Jiné[Zaplacená částka],Jiné[Účetní kód],SouhrnMěsíčníchVýdajů[[#This Row],[Účetní kód]],Jiné[Datum vyžádání částky],\">=\"&DATEVALUE(\"1.\"&SouhrnMěsíčníchVýdajů[[#Headers],[Srpen]]&_xlfn.SINGLE(_ROK)),Jiné[Datum vyžádání částky],\"<=\"&K$4)","v":{"v":0,"d":"0.00 Kč"}},{"$f":"SUMIFS(PodrobnýRozpisVýdajů[Zaplacená částka],PodrobnýRozpisVýdajů[Účetní kód],SouhrnMěsíčníchVýdajů[[#This Row],[Účetní kód]],PodrobnýRozpisVýdajů[Datum fakturace],\">=\"&L$3,PodrobnýRozpisVýdajů[Datum fakturace],\"<=\"&L$4)+SUMIFS(Jiné[Zaplacená částka],Jiné[Účetní kód],SouhrnMěsíčníchVýdajů[[#This Row],[Účetní kód]],Jiné[Datum vyžádání částky],\">=\"&DATEVALUE(\"1.\"&SouhrnMěsíčníchVýdajů[[#Headers],[Září]]&_xlfn.SINGLE(_ROK)),Jiné[Datum vyžádání částky],\"<=\"&L$4)","v":{"v":0,"d":"0.00 Kč"}},{"$f":"SUMIFS(PodrobnýRozpisVýdajů[Zaplacená částka],PodrobnýRozpisVýdajů[Účetní kód],SouhrnMěsíčníchVýdajů[[#This Row],[Účetní kód]],PodrobnýRozpisVýdajů[Datum fakturace],\">=\"&M$3,PodrobnýRozpisVýdajů[Datum fakturace],\"<=\"&M$4)+SUMIFS(Jiné[Zaplacená částka],Jiné[Účetní kód],SouhrnMěsíčníchVýdajů[[#This Row],[Účetní kód]],Jiné[Datum vyžádání částky],\">=\"&DATEVALUE(\"1.\"&SouhrnMěsíčníchVýdajů[[#Headers],[Říjen]]&_xlfn.SINGLE(_ROK)),Jiné[Datum vyžádání částky],\"<=\"&M$4)","v":{"v":0,"d":"0.00 Kč"}},{"$f":"SUMIFS(PodrobnýRozpisVýdajů[Zaplacená částka],PodrobnýRozpisVýdajů[Účetní kód],SouhrnMěsíčníchVýdajů[[#This Row],[Účetní kód]],PodrobnýRozpisVýdajů[Datum fakturace],\">=\"&N$3,PodrobnýRozpisVýdajů[Datum fakturace],\"<=\"&N$4)+SUMIFS(Jiné[Zaplacená částka],Jiné[Účetní kód],SouhrnMěsíčníchVýdajů[[#This Row],[Účetní kód]],Jiné[Datum vyžádání částky],\">=\"&DATEVALUE(\"1.\"&SouhrnMěsíčníchVýdajů[[#Headers],[Listopad]]&_xlfn.SINGLE(_ROK)),Jiné[Datum vyžádání částky],\"<=\"&N$4)","v":{"v":0,"d":"0.00 Kč"}},{"$f":"SUMIFS(PodrobnýRozpisVýdajů[Zaplacená částka],PodrobnýRozpisVýdajů[Účetní kód],SouhrnMěsíčníchVýdajů[[#This Row],[Účetní kód]],PodrobnýRozpisVýdajů[Datum fakturace],\">=\"&O$3,PodrobnýRozpisVýdajů[Datum fakturace],\"<=\"&O$4)+SUMIFS(Jiné[Zaplacená částka],Jiné[Účetní kód],SouhrnMěsíčníchVýdajů[[#This Row],[Účetní kód]],Jiné[Datum vyžádání částky],\">=\"&DATEVALUE(\"1.\"&SouhrnMěsíčníchVýdajů[[#Headers],[Prosinec]]&_xlfn.SINGLE(_ROK)),Jiné[Datum vyžádání částky],\"<=\"&O$4)","v":{"v":0,"d":"0.00 Kč"}},{"$f":"SUM(SouhrnMěsíčníchVýdajů[[#This Row],[Leden]:[Prosinec]])","v":{"v":0,"d":"0.00 Kč"}}]
[null,5000,"Kancelářské potřeby",{"$f":"SUMIFS(PodrobnýRozpisVýdajů[Zaplacená částka],PodrobnýRozpisVýdajů[Účetní kód],SouhrnMěsíčníchVýdajů[[#This Row],[Účetní kód]],PodrobnýRozpisVýdajů[Datum fakturace],\">=\"&D$3,PodrobnýRozpisVýdajů[Datum fakturace],\"<=\"&D$4)+SUMIFS(Jiné[Zaplacená částka],Jiné[Účetní kód],SouhrnMěsíčníchVýdajů[[#This Row],[Účetní kód]],Jiné[Datum vyžádání částky],\">=\"&DATEVALUE(\"1.\"&SouhrnMěsíčníchVýdajů[[#Headers],[Leden]]&_xlfn.SINGLE(_ROK)),Jiné[Datum vyžádání částky],\"<=\"&D$4)","v":{"v":0,"d":"0.00 Kč"}},{"$f":"SUMIFS(PodrobnýRozpisVýdajů[Zaplacená částka],PodrobnýRozpisVýdajů[Účetní kód],SouhrnMěsíčníchVýdajů[[#This Row],[Účetní kód]],PodrobnýRozpisVýdajů[Datum fakturace],\">=\"&E$3,PodrobnýRozpisVýdajů[Datum fakturace],\"<=\"&E$4)+SUMIFS(Jiné[Zaplacená částka],Jiné[Účetní kód],SouhrnMěsíčníchVýdajů[[#This Row],[Účetní kód]],Jiné[Datum vyžádání částky],\">=\"&DATEVALUE(\"1.\"&SouhrnMěsíčníchVýdajů[[#Headers],[Únor]]&_xlfn.SINGLE(_ROK)),Jiné[Datum vyžádání částky],\"<=\"&E$4)","v":{"v":0,"d":"0.00 Kč"}},{"$f":"SUMIFS(PodrobnýRozpisVýdajů[Zaplacená částka],PodrobnýRozpisVýdajů[Účetní kód],SouhrnMěsíčníchVýdajů[[#This Row],[Účetní kód]],PodrobnýRozpisVýdajů[Datum fakturace],\">=\"&F$3,PodrobnýRozpisVýdajů[Datum fakturace],\"<=\"&F$4)+SUMIFS(Jiné[Zaplacená částka],Jiné[Účetní kód],SouhrnMěsíčníchVýdajů[[#This Row],[Účetní kód]],Jiné[Datum vyžádání částky],\">=\"&DATEVALUE(\"1.\"&SouhrnMěsíčníchVýdajů[[#Headers],[Březen]]&_xlfn.SINGLE(_ROK)),Jiné[Datum vyžádání částky],\"<=\"&F$4)","v":{"v":0,"d":"0.00 Kč"}},{"$f":"SUMIFS(PodrobnýRozpisVýdajů[Zaplacená částka],PodrobnýRozpisVýdajů[Účetní kód],SouhrnMěsíčníchVýdajů[[#This Row],[Účetní kód]],PodrobnýRozpisVýdajů[Datum fakturace],\">=\"&G$3,PodrobnýRozpisVýdajů[Datum fakturace],\"<=\"&G$4)+SUMIFS(Jiné[Zaplacená částka],Jiné[Účetní kód],SouhrnMěsíčníchVýdajů[[#This Row],[Účetní kód]],Jiné[Datum vyžádání částky],\">=\"&DATEVALUE(\"1.\"&SouhrnMěsíčníchVýdajů[[#Headers],[Duben]]&_xlfn.SINGLE(_ROK)),Jiné[Datum vyžádání částky],\"<=\"&G$4)","v":{"v":0,"d":"0.00 Kč"}},{"$f":"SUMIFS(PodrobnýRozpisVýdajů[Zaplacená částka],PodrobnýRozpisVýdajů[Účetní kód],SouhrnMěsíčníchVýdajů[[#This Row],[Účetní kód]],PodrobnýRozpisVýdajů[Datum fakturace],\">=\"&H$3,PodrobnýRozpisVýdajů[Datum fakturace],\"<=\"&H$4)+SUMIFS(Jiné[Zaplacená částka],Jiné[Účetní kód],SouhrnMěsíčníchVýdajů[[#This Row],[Účetní kód]],Jiné[Datum vyžádání částky],\">=\"&DATEVALUE(\"1.\"&SouhrnMěsíčníchVýdajů[[#Headers],[Květen]]&_xlfn.SINGLE(_ROK)),Jiné[Datum vyžádání částky],\"<=\"&H$4)","v":{"v":0,"d":"0.00 Kč"}},{"$f":"SUMIFS(PodrobnýRozpisVýdajů[Zaplacená částka],PodrobnýRozpisVýdajů[Účetní kód],SouhrnMěsíčníchVýdajů[[#This Row],[Účetní kód]],PodrobnýRozpisVýdajů[Datum fakturace],\">=\"&I$3,PodrobnýRozpisVýdajů[Datum fakturace],\"<=\"&I$4)+SUMIFS(Jiné[Zaplacená částka],Jiné[Účetní kód],SouhrnMěsíčníchVýdajů[[#This Row],[Účetní kód]],Jiné[Datum vyžádání částky],\">=\"&DATEVALUE(\"1.\"&SouhrnMěsíčníchVýdajů[[#Headers],[Červen]]&_xlfn.SINGLE(_ROK)),Jiné[Datum vyžádání částky],\"<=\"&I$4)","v":{"v":0,"d":"0.00 Kč"}},{"$f":"SUMIFS(PodrobnýRozpisVýdajů[Zaplacená částka],PodrobnýRozpisVýdajů[Účetní kód],SouhrnMěsíčníchVýdajů[[#This Row],[Účetní kód]],PodrobnýRozpisVýdajů[Datum fakturace],\">=\"&J$3,PodrobnýRozpisVýdajů[Datum fakturace],\"<=\"&J$4)+SUMIFS(Jiné[Zaplacená částka],Jiné[Účetní kód],SouhrnMěsíčníchVýdajů[[#This Row],[Účetní kód]],Jiné[Datum vyžádání částky],\">=\"&DATEVALUE(\"1.\"&SouhrnMěsíčníchVýdajů[[#Headers],[Červenec]]&_xlfn.SINGLE(_ROK)),Jiné[Datum vyžádání částky],\"<=\"&J$4)","v":{"v":0,"d":"0.00 Kč"}},{"$f":"SUMIFS(PodrobnýRozpisVýdajů[Zaplacená částka],PodrobnýRozpisVýdajů[Účetní kód],SouhrnMěsíčníchVýdajů[[#This Row],[Účetní kód]],PodrobnýRozpisVýdajů[Datum fakturace],\">=\"&K$3,PodrobnýRozpisVýdajů[Datum fakturace],\"<=\"&K$4)+SUMIFS(Jiné[Zaplacená částka],Jiné[Účetní kód],SouhrnMěsíčníchVýdajů[[#This Row],[Účetní kód]],Jiné[Datum vyžádání částky],\">=\"&DATEVALUE(\"1.\"&SouhrnMěsíčníchVýdajů[[#Headers],[Srpen]]&_xlfn.SINGLE(_ROK)),Jiné[Datum vyžádání částky],\"<=\"&K$4)","v":{"v":0,"d":"0.00 Kč"}},{"$f":"SUMIFS(PodrobnýRozpisVýdajů[Zaplacená částka],PodrobnýRozpisVýdajů[Účetní kód],SouhrnMěsíčníchVýdajů[[#This Row],[Účetní kód]],PodrobnýRozpisVýdajů[Datum fakturace],\">=\"&L$3,PodrobnýRozpisVýdajů[Datum fakturace],\"<=\"&L$4)+SUMIFS(Jiné[Zaplacená částka],Jiné[Účetní kód],SouhrnMěsíčníchVýdajů[[#This Row],[Účetní kód]],Jiné[Datum vyžádání částky],\">=\"&DATEVALUE(\"1.\"&SouhrnMěsíčníchVýdajů[[#Headers],[Září]]&_xlfn.SINGLE(_ROK)),Jiné[Datum vyžádání částky],\"<=\"&L$4)","v":{"v":0,"d":"0.00 Kč"}},{"$f":"SUMIFS(PodrobnýRozpisVýdajů[Zaplacená částka],PodrobnýRozpisVýdajů[Účetní kód],SouhrnMěsíčníchVýdajů[[#This Row],[Účetní kód]],PodrobnýRozpisVýdajů[Datum fakturace],\">=\"&M$3,PodrobnýRozpisVýdajů[Datum fakturace],\"<=\"&M$4)+SUMIFS(Jiné[Zaplacená částka],Jiné[Účetní kód],SouhrnMěsíčníchVýdajů[[#This Row],[Účetní kód]],Jiné[Datum vyžádání částky],\">=\"&DATEVALUE(\"1.\"&SouhrnMěsíčníchVýdajů[[#Headers],[Říjen]]&_xlfn.SINGLE(_ROK)),Jiné[Datum vyžádání částky],\"<=\"&M$4)","v":{"v":0,"d":"0.00 Kč"}},{"$f":"SUMIFS(PodrobnýRozpisVýdajů[Zaplacená částka],PodrobnýRozpisVýdajů[Účetní kód],SouhrnMěsíčníchVýdajů[[#This Row],[Účetní kód]],PodrobnýRozpisVýdajů[Datum fakturace],\">=\"&N$3,PodrobnýRozpisVýdajů[Datum fakturace],\"<=\"&N$4)+SUMIFS(Jiné[Zaplacená částka],Jiné[Účetní kód],SouhrnMěsíčníchVýdajů[[#This Row],[Účetní kód]],Jiné[Datum vyžádání částky],\">=\"&DATEVALUE(\"1.\"&SouhrnMěsíčníchVýdajů[[#Headers],[Listopad]]&_xlfn.SINGLE(_ROK)),Jiné[Datum vyžádání částky],\"<=\"&N$4)","v":{"v":0,"d":"0.00 Kč"}},{"$f":"SUMIFS(PodrobnýRozpisVýdajů[Zaplacená částka],PodrobnýRozpisVýdajů[Účetní kód],SouhrnMěsíčníchVýdajů[[#This Row],[Účetní kód]],PodrobnýRozpisVýdajů[Datum fakturace],\">=\"&O$3,PodrobnýRozpisVýdajů[Datum fakturace],\"<=\"&O$4)+SUMIFS(Jiné[Zaplacená částka],Jiné[Účetní kód],SouhrnMěsíčníchVýdajů[[#This Row],[Účetní kód]],Jiné[Datum vyžádání částky],\">=\"&DATEVALUE(\"1.\"&SouhrnMěsíčníchVýdajů[[#Headers],[Prosinec]]&_xlfn.SINGLE(_ROK)),Jiné[Datum vyžádání částky],\"<=\"&O$4)","v":{"v":0,"d":"0.00 Kč"}},{"$f":"SUM(SouhrnMěsíčníchVýdajů[[#This Row],[Leden]:[Prosinec]])","v":{"v":0,"d":"0.00 Kč"}}]
[null,6000,"Výdaje na klienty",{"$f":"SUMIFS(PodrobnýRozpisVýdajů[Zaplacená částka],PodrobnýRozpisVýdajů[Účetní kód],SouhrnMěsíčníchVýdajů[[#This Row],[Účetní kód]],PodrobnýRozpisVýdajů[Datum fakturace],\">=\"&D$3,PodrobnýRozpisVýdajů[Datum fakturace],\"<=\"&D$4)+SUMIFS(Jiné[Zaplacená částka],Jiné[Účetní kód],SouhrnMěsíčníchVýdajů[[#This Row],[Účetní kód]],Jiné[Datum vyžádání částky],\">=\"&DATEVALUE(\"1.\"&SouhrnMěsíčníchVýdajů[[#Headers],[Leden]]&_xlfn.SINGLE(_ROK)),Jiné[Datum vyžádání částky],\"<=\"&D$4)","v":{"v":0,"d":"0.00 Kč"}},{"$f":"SUMIFS(PodrobnýRozpisVýdajů[Zaplacená částka],PodrobnýRozpisVýdajů[Účetní kód],SouhrnMěsíčníchVýdajů[[#This Row],[Účetní kód]],PodrobnýRozpisVýdajů[Datum fakturace],\">=\"&E$3,PodrobnýRozpisVýdajů[Datum fakturace],\"<=\"&E$4)+SUMIFS(Jiné[Zaplacená částka],Jiné[Účetní kód],SouhrnMěsíčníchVýdajů[[#This Row],[Účetní kód]],Jiné[Datum vyžádání částky],\">=\"&DATEVALUE(\"1.\"&SouhrnMěsíčníchVýdajů[[#Headers],[Únor]]&_xlfn.SINGLE(_ROK)),Jiné[Datum vyžádání částky],\"<=\"&E$4)","v":{"v":0,"d":"0.00 Kč"}},{"$f":"SUMIFS(PodrobnýRozpisVýdajů[Zaplacená částka],PodrobnýRozpisVýdajů[Účetní kód],SouhrnMěsíčníchVýdajů[[#This Row],[Účetní kód]],PodrobnýRozpisVýdajů[Datum fakturace],\">=\"&F$3,PodrobnýRozpisVýdajů[Datum fakturace],\"<=\"&F$4)+SUMIFS(Jiné[Zaplacená částka],Jiné[Účetní kód],SouhrnMěsíčníchVýdajů[[#This Row],[Účetní kód]],Jiné[Datum vyžádání částky],\">=\"&DATEVALUE(\"1.\"&SouhrnMěsíčníchVýdajů[[#Headers],[Březen]]&_xlfn.SINGLE(_ROK)),Jiné[Datum vyžádání částky],\"<=\"&F$4)","v":{"v":0,"d":"0.00 Kč"}},{"$f":"SUMIFS(PodrobnýRozpisVýdajů[Zaplacená částka],PodrobnýRozpisVýdajů[Účetní kód],SouhrnMěsíčníchVýdajů[[#This Row],[Účetní kód]],PodrobnýRozpisVýdajů[Datum fakturace],\">=\"&G$3,PodrobnýRozpisVýdajů[Datum fakturace],\"<=\"&G$4)+SUMIFS(Jiné[Zaplacená částka],Jiné[Účetní kód],SouhrnMěsíčníchVýdajů[[#This Row],[Účetní kód]],Jiné[Datum vyžádání částky],\">=\"&DATEVALUE(\"1.\"&SouhrnMěsíčníchVýdajů[[#Headers],[Duben]]&_xlfn.SINGLE(_ROK)),Jiné[Datum vyžádání částky],\"<=\"&G$4)","v":{"v":0,"d":"0.00 Kč"}},{"$f":"SUMIFS(PodrobnýRozpisVýdajů[Zaplacená částka],PodrobnýRozpisVýdajů[Účetní kód],SouhrnMěsíčníchVýdajů[[#This Row],[Účetní kód]],PodrobnýRozpisVýdajů[Datum fakturace],\">=\"&H$3,PodrobnýRozpisVýdajů[Datum fakturace],\"<=\"&H$4)+SUMIFS(Jiné[Zaplacená částka],Jiné[Účetní kód],SouhrnMěsíčníchVýdajů[[#This Row],[Účetní kód]],Jiné[Datum vyžádání částky],\">=\"&DATEVALUE(\"1.\"&SouhrnMěsíčníchVýdajů[[#Headers],[Květen]]&_xlfn.SINGLE(_ROK)),Jiné[Datum vyžádání částky],\"<=\"&H$4)","v":{"v":0,"d":"0.00 Kč"}},{"$f":"SUMIFS(PodrobnýRozpisVýdajů[Zaplacená částka],PodrobnýRozpisVýdajů[Účetní kód],SouhrnMěsíčníchVýdajů[[#This Row],[Účetní kód]],PodrobnýRozpisVýdajů[Datum fakturace],\">=\"&I$3,PodrobnýRozpisVýdajů[Datum fakturace],\"<=\"&I$4)+SUMIFS(Jiné[Zaplacená částka],Jiné[Účetní kód],SouhrnMěsíčníchVýdajů[[#This Row],[Účetní kód]],Jiné[Datum vyžádání částky],\">=\"&DATEVALUE(\"1.\"&SouhrnMěsíčníchVýdajů[[#Headers],[Červen]]&_xlfn.SINGLE(_ROK)),Jiné[Datum vyžádání částky],\"<=\"&I$4)","v":{"v":0,"d":"0.00 Kč"}},{"$f":"SUMIFS(PodrobnýRozpisVýdajů[Zaplacená částka],PodrobnýRozpisVýdajů[Účetní kód],SouhrnMěsíčníchVýdajů[[#This Row],[Účetní kód]],PodrobnýRozpisVýdajů[Datum fakturace],\">=\"&J$3,PodrobnýRozpisVýdajů[Datum fakturace],\"<=\"&J$4)+SUMIFS(Jiné[Zaplacená částka],Jiné[Účetní kód],SouhrnMěsíčníchVýdajů[[#This Row],[Účetní kód]],Jiné[Datum vyžádání částky],\">=\"&DATEVALUE(\"1.\"&SouhrnMěsíčníchVýdajů[[#Headers],[Červenec]]&_xlfn.SINGLE(_ROK)),Jiné[Datum vyžádání částky],\"<=\"&J$4)","v":{"v":0,"d":"0.00 Kč"}},{"$f":"SUMIFS(PodrobnýRozpisVýdajů[Zaplacená částka],PodrobnýRozpisVýdajů[Účetní kód],SouhrnMěsíčníchVýdajů[[#This Row],[Účetní kód]],PodrobnýRozpisVýdajů[Datum fakturace],\">=\"&K$3,PodrobnýRozpisVýdajů[Datum fakturace],\"<=\"&K$4)+SUMIFS(Jiné[Zaplacená částka],Jiné[Účetní kód],SouhrnMěsíčníchVýdajů[[#This Row],[Účetní kód]],Jiné[Datum vyžádání částky],\">=\"&DATEVALUE(\"1.\"&SouhrnMěsíčníchVýdajů[[#Headers],[Srpen]]&_xlfn.SINGLE(_ROK)),Jiné[Datum vyžádání částky],\"<=\"&K$4)","v":{"v":0,"d":"0.00 Kč"}},{"$f":"SUMIFS(PodrobnýRozpisVýdajů[Zaplacená částka],PodrobnýRozpisVýdajů[Účetní kód],SouhrnMěsíčníchVýdajů[[#This Row],[Účetní kód]],PodrobnýRozpisVýdajů[Datum fakturace],\">=\"&L$3,PodrobnýRozpisVýdajů[Datum fakturace],\"<=\"&L$4)+SUMIFS(Jiné[Zaplacená částka],Jiné[Účetní kód],SouhrnMěsíčníchVýdajů[[#This Row],[Účetní kód]],Jiné[Datum vyžádání částky],\">=\"&DATEVALUE(\"1.\"&SouhrnMěsíčníchVýdajů[[#Headers],[Září]]&_xlfn.SINGLE(_ROK)),Jiné[Datum vyžádání částky],\"<=\"&L$4)","v":{"v":0,"d":"0.00 Kč"}},{"$f":"SUMIFS(PodrobnýRozpisVýdajů[Zaplacená částka],PodrobnýRozpisVýdajů[Účetní kód],SouhrnMěsíčníchVýdajů[[#This Row],[Účetní kód]],PodrobnýRozpisVýdajů[Datum fakturace],\">=\"&M$3,PodrobnýRozpisVýdajů[Datum fakturace],\"<=\"&M$4)+SUMIFS(Jiné[Zaplacená částka],Jiné[Účetní kód],SouhrnMěsíčníchVýdajů[[#This Row],[Účetní kód]],Jiné[Datum vyžádání částky],\">=\"&DATEVALUE(\"1.\"&SouhrnMěsíčníchVýdajů[[#Headers],[Říjen]]&_xlfn.SINGLE(_ROK)),Jiné[Datum vyžádání částky],\"<=\"&M$4)","v":{"v":0,"d":"0.00 Kč"}},{"$f":"SUMIFS(PodrobnýRozpisVýdajů[Zaplacená částka],PodrobnýRozpisVýdajů[Účetní kód],SouhrnMěsíčníchVýdajů[[#This Row],[Účetní kód]],PodrobnýRozpisVýdajů[Datum fakturace],\">=\"&N$3,PodrobnýRozpisVýdajů[Datum fakturace],\"<=\"&N$4)+SUMIFS(Jiné[Zaplacená částka],Jiné[Účetní kód],SouhrnMěsíčníchVýdajů[[#This Row],[Účetní kód]],Jiné[Datum vyžádání částky],\">=\"&DATEVALUE(\"1.\"&SouhrnMěsíčníchVýdajů[[#Headers],[Listopad]]&_xlfn.SINGLE(_ROK)),Jiné[Datum vyžádání částky],\"<=\"&N$4)","v":{"v":0,"d":"0.00 Kč"}},{"$f":"SUMIFS(PodrobnýRozpisVýdajů[Zaplacená částka],PodrobnýRozpisVýdajů[Účetní kód],SouhrnMěsíčníchVýdajů[[#This Row],[Účetní kód]],PodrobnýRozpisVýdajů[Datum fakturace],\">=\"&O$3,PodrobnýRozpisVýdajů[Datum fakturace],\"<=\"&O$4)+SUMIFS(Jiné[Zaplacená částka],Jiné[Účetní kód],SouhrnMěsíčníchVýdajů[[#This Row],[Účetní kód]],Jiné[Datum vyžádání částky],\">=\"&DATEVALUE(\"1.\"&SouhrnMěsíčníchVýdajů[[#Headers],[Prosinec]]&_xlfn.SINGLE(_ROK)),Jiné[Datum vyžádání částky],\"<=\"&O$4)","v":{"v":0,"d":"0.00 Kč"}},{"$f":"SUM(SouhrnMěsíčníchVýdajů[[#This Row],[Leden]:[Prosinec]])","v":{"v":0,"d":"0.00 Kč"}}]
[null,7000,"Počítače",{"$f":"SUMIFS(PodrobnýRozpisVýdajů[Zaplacená částka],PodrobnýRozpisVýdajů[Účetní kód],SouhrnMěsíčníchVýdajů[[#This Row],[Účetní kód]],PodrobnýRozpisVýdajů[Datum fakturace],\">=\"&D$3,PodrobnýRozpisVýdajů[Datum fakturace],\"<=\"&D$4)+SUMIFS(Jiné[Zaplacená částka],Jiné[Účetní kód],SouhrnMěsíčníchVýdajů[[#This Row],[Účetní kód]],Jiné[Datum vyžádání částky],\">=\"&DATEVALUE(\"1.\"&SouhrnMěsíčníchVýdajů[[#Headers],[Leden]]&_xlfn.SINGLE(_ROK)),Jiné[Datum vyžádání částky],\"<=\"&D$4)","v":{"v":0,"d":"0.00 Kč"}},{"$f":"SUMIFS(PodrobnýRozpisVýdajů[Zaplacená částka],PodrobnýRozpisVýdajů[Účetní kód],SouhrnMěsíčníchVýdajů[[#This Row],[Účetní kód]],PodrobnýRozpisVýdajů[Datum fakturace],\">=\"&E$3,PodrobnýRozpisVýdajů[Datum fakturace],\"<=\"&E$4)+SUMIFS(Jiné[Zaplacená částka],Jiné[Účetní kód],SouhrnMěsíčníchVýdajů[[#This Row],[Účetní kód]],Jiné[Datum vyžádání částky],\">=\"&DATEVALUE(\"1.\"&SouhrnMěsíčníchVýdajů[[#Headers],[Únor]]&_xlfn.SINGLE(_ROK)),Jiné[Datum vyžádání částky],\"<=\"&E$4)","v":{"v":0,"d":"0.00 Kč"}},{"$f":"SUMIFS(PodrobnýRozpisVýdajů[Zaplacená částka],PodrobnýRozpisVýdajů[Účetní kód],SouhrnMěsíčníchVýdajů[[#This Row],[Účetní kód]],PodrobnýRozpisVýdajů[Datum fakturace],\">=\"&F$3,PodrobnýRozpisVýdajů[Datum fakturace],\"<=\"&F$4)+SUMIFS(Jiné[Zaplacená částka],Jiné[Účetní kód],SouhrnMěsíčníchVýdajů[[#This Row],[Účetní kód]],Jiné[Datum vyžádání částky],\">=\"&DATEVALUE(\"1.\"&SouhrnMěsíčníchVýdajů[[#Headers],[Březen]]&_xlfn.SINGLE(_ROK)),Jiné[Datum vyžádání částky],\"<=\"&F$4)","v":{"v":0,"d":"0.00 Kč"}},{"$f":"SUMIFS(PodrobnýRozpisVýdajů[Zaplacená částka],PodrobnýRozpisVýdajů[Účetní kód],SouhrnMěsíčníchVýdajů[[#This Row],[Účetní kód]],PodrobnýRozpisVýdajů[Datum fakturace],\">=\"&G$3,PodrobnýRozpisVýdajů[Datum fakturace],\"<=\"&G$4)+SUMIFS(Jiné[Zaplacená částka],Jiné[Účetní kód],SouhrnMěsíčníchVýdajů[[#This Row],[Účetní kód]],Jiné[Datum vyžádání částky],\">=\"&DATEVALUE(\"1.\"&SouhrnMěsíčníchVýdajů[[#Headers],[Duben]]&_xlfn.SINGLE(_ROK)),Jiné[Datum vyžádání částky],\"<=\"&G$4)","v":{"v":0,"d":"0.00 Kč"}},{"$f":"SUMIFS(PodrobnýRozpisVýdajů[Zaplacená částka],PodrobnýRozpisVýdajů[Účetní kód],SouhrnMěsíčníchVýdajů[[#This Row],[Účetní kód]],PodrobnýRozpisVýdajů[Datum fakturace],\">=\"&H$3,PodrobnýRozpisVýdajů[Datum fakturace],\"<=\"&H$4)+SUMIFS(Jiné[Zaplacená částka],Jiné[Účetní kód],SouhrnMěsíčníchVýdajů[[#This Row],[Účetní kód]],Jiné[Datum vyžádání částky],\">=\"&DATEVALUE(\"1.\"&SouhrnMěsíčníchVýdajů[[#Headers],[Květen]]&_xlfn.SINGLE(_ROK)),Jiné[Datum vyžádání částky],\"<=\"&H$4)","v":{"v":0,"d":"0.00 Kč"}},{"$f":"SUMIFS(PodrobnýRozpisVýdajů[Zaplacená částka],PodrobnýRozpisVýdajů[Účetní kód],SouhrnMěsíčníchVýdajů[[#This Row],[Účetní kód]],PodrobnýRozpisVýdajů[Datum fakturace],\">=\"&I$3,PodrobnýRozpisVýdajů[Datum fakturace],\"<=\"&I$4)+SUMIFS(Jiné[Zaplacená částka],Jiné[Účetní kód],SouhrnMěsíčníchVýdajů[[#This Row],[Účetní kód]],Jiné[Datum vyžádání částky],\">=\"&DATEVALUE(\"1.\"&SouhrnMěsíčníchVýdajů[[#Headers],[Červen]]&_xlfn.SINGLE(_ROK)),Jiné[Datum vyžádání částky],\"<=\"&I$4)","v":{"v":0,"d":"0.00 Kč"}},{"$f":"SUMIFS(PodrobnýRozpisVýdajů[Zaplacená částka],PodrobnýRozpisVýdajů[Účetní kód],SouhrnMěsíčníchVýdajů[[#This Row],[Účetní kód]],PodrobnýRozpisVýdajů[Datum fakturace],\">=\"&J$3,PodrobnýRozpisVýdajů[Datum fakturace],\"<=\"&J$4)+SUMIFS(Jiné[Zaplacená částka],Jiné[Účetní kód],SouhrnMěsíčníchVýdajů[[#This Row],[Účetní kód]],Jiné[Datum vyžádání částky],\">=\"&DATEVALUE(\"1.\"&SouhrnMěsíčníchVýdajů[[#Headers],[Červenec]]&_xlfn.SINGLE(_ROK)),Jiné[Datum vyžádání částky],\"<=\"&J$4)","v":{"v":0,"d":"0.00 Kč"}},{"$f":"SUMIFS(PodrobnýRozpisVýdajů[Zaplacená částka],PodrobnýRozpisVýdajů[Účetní kód],SouhrnMěsíčníchVýdajů[[#This Row],[Účetní kód]],PodrobnýRozpisVýdajů[Datum fakturace],\">=\"&K$3,PodrobnýRozpisVýdajů[Datum fakturace],\"<=\"&K$4)+SUMIFS(Jiné[Zaplacená částka],Jiné[Účetní kód],SouhrnMěsíčníchVýdajů[[#This Row],[Účetní kód]],Jiné[Datum vyžádání částky],\">=\"&DATEVALUE(\"1.\"&SouhrnMěsíčníchVýdajů[[#Headers],[Srpen]]&_xlfn.SINGLE(_ROK)),Jiné[Datum vyžádání částky],\"<=\"&K$4)","v":{"v":0,"d":"0.00 Kč"}},{"$f":"SUMIFS(PodrobnýRozpisVýdajů[Zaplacená částka],PodrobnýRozpisVýdajů[Účetní kód],SouhrnMěsíčníchVýdajů[[#This Row],[Účetní kód]],PodrobnýRozpisVýdajů[Datum fakturace],\">=\"&L$3,PodrobnýRozpisVýdajů[Datum fakturace],\"<=\"&L$4)+SUMIFS(Jiné[Zaplacená částka],Jiné[Účetní kód],SouhrnMěsíčníchVýdajů[[#This Row],[Účetní kód]],Jiné[Datum vyžádání částky],\">=\"&DATEVALUE(\"1.\"&SouhrnMěsíčníchVýdajů[[#Headers],[Září]]&_xlfn.SINGLE(_ROK)),Jiné[Datum vyžádání částky],\"<=\"&L$4)","v":{"v":0,"d":"0.00 Kč"}},{"$f":"SUMIFS(PodrobnýRozpisVýdajů[Zaplacená částka],PodrobnýRozpisVýdajů[Účetní kód],SouhrnMěsíčníchVýdajů[[#This Row],[Účetní kód]],PodrobnýRozpisVýdajů[Datum fakturace],\">=\"&M$3,PodrobnýRozpisVýdajů[Datum fakturace],\"<=\"&M$4)+SUMIFS(Jiné[Zaplacená částka],Jiné[Účetní kód],SouhrnMěsíčníchVýdajů[[#This Row],[Účetní kód]],Jiné[Datum vyžádání částky],\">=\"&DATEVALUE(\"1.\"&SouhrnMěsíčníchVýdajů[[#Headers],[Říjen]]&_xlfn.SINGLE(_ROK)),Jiné[Datum vyžádání částky],\"<=\"&M$4)","v":{"v":0,"d":"0.00 Kč"}},{"$f":"SUMIFS(PodrobnýRozpisVýdajů[Zaplacená částka],PodrobnýRozpisVýdajů[Účetní kód],SouhrnMěsíčníchVýdajů[[#This Row],[Účetní kód]],PodrobnýRozpisVýdajů[Datum fakturace],\">=\"&N$3,PodrobnýRozpisVýdajů[Datum fakturace],\"<=\"&N$4)+SUMIFS(Jiné[Zaplacená částka],Jiné[Účetní kód],SouhrnMěsíčníchVýdajů[[#This Row],[Účetní kód]],Jiné[Datum vyžádání částky],\">=\"&DATEVALUE(\"1.\"&SouhrnMěsíčníchVýdajů[[#Headers],[Listopad]]&_xlfn.SINGLE(_ROK)),Jiné[Datum vyžádání částky],\"<=\"&N$4)","v":{"v":0,"d":"0.00 Kč"}},{"$f":"SUMIFS(PodrobnýRozpisVýdajů[Zaplacená částka],PodrobnýRozpisVýdajů[Účetní kód],SouhrnMěsíčníchVýdajů[[#This Row],[Účetní kód]],PodrobnýRozpisVýdajů[Datum fakturace],\">=\"&O$3,PodrobnýRozpisVýdajů[Datum fakturace],\"<=\"&O$4)+SUMIFS(Jiné[Zaplacená částka],Jiné[Účetní kód],SouhrnMěsíčníchVýdajů[[#This Row],[Účetní kód]],Jiné[Datum vyžádání částky],\">=\"&DATEVALUE(\"1.\"&SouhrnMěsíčníchVýdajů[[#Headers],[Prosinec]]&_xlfn.SINGLE(_ROK)),Jiné[Datum vyžádání částky],\"<=\"&O$4)","v":{"v":0,"d":"0.00 Kč"}},{"$f":"SUM(SouhrnMěsíčníchVýdajů[[#This Row],[Leden]:[Prosinec]])","v":{"v":0,"d":"0.00 Kč"}}]
[null,8000,"Zdravotní pojištění",{"$f":"SUMIFS(PodrobnýRozpisVýdajů[Zaplacená částka],PodrobnýRozpisVýdajů[Účetní kód],SouhrnMěsíčníchVýdajů[[#This Row],[Účetní kód]],PodrobnýRozpisVýdajů[Datum fakturace],\">=\"&D$3,PodrobnýRozpisVýdajů[Datum fakturace],\"<=\"&D$4)+SUMIFS(Jiné[Zaplacená částka],Jiné[Účetní kód],SouhrnMěsíčníchVýdajů[[#This Row],[Účetní kód]],Jiné[Datum vyžádání částky],\">=\"&DATEVALUE(\"1.\"&SouhrnMěsíčníchVýdajů[[#Headers],[Leden]]&_xlfn.SINGLE(_ROK)),Jiné[Datum vyžádání částky],\"<=\"&D$4)","v":{"v":0,"d":"0.00 Kč"}},{"$f":"SUMIFS(PodrobnýRozpisVýdajů[Zaplacená částka],PodrobnýRozpisVýdajů[Účetní kód],SouhrnMěsíčníchVýdajů[[#This Row],[Účetní kód]],PodrobnýRozpisVýdajů[Datum fakturace],\">=\"&E$3,PodrobnýRozpisVýdajů[Datum fakturace],\"<=\"&E$4)+SUMIFS(Jiné[Zaplacená částka],Jiné[Účetní kód],SouhrnMěsíčníchVýdajů[[#This Row],[Účetní kód]],Jiné[Datum vyžádání částky],\">=\"&DATEVALUE(\"1.\"&SouhrnMěsíčníchVýdajů[[#Headers],[Únor]]&_xlfn.SINGLE(_ROK)),Jiné[Datum vyžádání částky],\"<=\"&E$4)","v":{"v":0,"d":"0.00 Kč"}},{"$f":"SUMIFS(PodrobnýRozpisVýdajů[Zaplacená částka],PodrobnýRozpisVýdajů[Účetní kód],SouhrnMěsíčníchVýdajů[[#This Row],[Účetní kód]],PodrobnýRozpisVýdajů[Datum fakturace],\">=\"&F$3,PodrobnýRozpisVýdajů[Datum fakturace],\"<=\"&F$4)+SUMIFS(Jiné[Zaplacená částka],Jiné[Účetní kód],SouhrnMěsíčníchVýdajů[[#This Row],[Účetní kód]],Jiné[Datum vyžádání částky],\">=\"&DATEVALUE(\"1.\"&SouhrnMěsíčníchVýdajů[[#Headers],[Březen]]&_xlfn.SINGLE(_ROK)),Jiné[Datum vyžádání částky],\"<=\"&F$4)","v":{"v":0,"d":"0.00 Kč"}},{"$f":"SUMIFS(PodrobnýRozpisVýdajů[Zaplacená částka],PodrobnýRozpisVýdajů[Účetní kód],SouhrnMěsíčníchVýdajů[[#This Row],[Účetní kód]],PodrobnýRozpisVýdajů[Datum fakturace],\">=\"&G$3,PodrobnýRozpisVýdajů[Datum fakturace],\"<=\"&G$4)+SUMIFS(Jiné[Zaplacená částka],Jiné[Účetní kód],SouhrnMěsíčníchVýdajů[[#This Row],[Účetní kód]],Jiné[Datum vyžádání částky],\">=\"&DATEVALUE(\"1.\"&SouhrnMěsíčníchVýdajů[[#Headers],[Duben]]&_xlfn.SINGLE(_ROK)),Jiné[Datum vyžádání částky],\"<=\"&G$4)","v":{"v":0,"d":"0.00 Kč"}},{"$f":"SUMIFS(PodrobnýRozpisVýdajů[Zaplacená částka],PodrobnýRozpisVýdajů[Účetní kód],SouhrnMěsíčníchVýdajů[[#This Row],[Účetní kód]],PodrobnýRozpisVýdajů[Datum fakturace],\">=\"&H$3,PodrobnýRozpisVýdajů[Datum fakturace],\"<=\"&H$4)+SUMIFS(Jiné[Zaplacená částka],Jiné[Účetní kód],SouhrnMěsíčníchVýdajů[[#This Row],[Účetní kód]],Jiné[Datum vyžádání částky],\">=\"&DATEVALUE(\"1.\"&SouhrnMěsíčníchVýdajů[[#Headers],[Květen]]&_xlfn.SINGLE(_ROK)),Jiné[Datum vyžádání částky],\"<=\"&H$4)","v":{"v":0,"d":"0.00 Kč"}},{"$f":"SUMIFS(PodrobnýRozpisVýdajů[Zaplacená částka],PodrobnýRozpisVýdajů[Účetní kód],SouhrnMěsíčníchVýdajů[[#This Row],[Účetní kód]],PodrobnýRozpisVýdajů[Datum fakturace],\">=\"&I$3,PodrobnýRozpisVýdajů[Datum fakturace],\"<=\"&I$4)+SUMIFS(Jiné[Zaplacená částka],Jiné[Účetní kód],SouhrnMěsíčníchVýdajů[[#This Row],[Účetní kód]],Jiné[Datum vyžádání částky],\">=\"&DATEVALUE(\"1.\"&SouhrnMěsíčníchVýdajů[[#Headers],[Červen]]&_xlfn.SINGLE(_ROK)),Jiné[Datum vyžádání částky],\"<=\"&I$4)","v":{"v":0,"d":"0.00 Kč"}},{"$f":"SUMIFS(PodrobnýRozpisVýdajů[Zaplacená částka],PodrobnýRozpisVýdajů[Účetní kód],SouhrnMěsíčníchVýdajů[[#This Row],[Účetní kód]],PodrobnýRozpisVýdajů[Datum fakturace],\">=\"&J$3,PodrobnýRozpisVýdajů[Datum fakturace],\"<=\"&J$4)+SUMIFS(Jiné[Zaplacená částka],Jiné[Účetní kód],SouhrnMěsíčníchVýdajů[[#This Row],[Účetní kód]],Jiné[Datum vyžádání částky],\">=\"&DATEVALUE(\"1.\"&SouhrnMěsíčníchVýdajů[[#Headers],[Červenec]]&_xlfn.SINGLE(_ROK)),Jiné[Datum vyžádání částky],\"<=\"&J$4)","v":{"v":0,"d":"0.00 Kč"}},{"$f":"SUMIFS(PodrobnýRozpisVýdajů[Zaplacená částka],PodrobnýRozpisVýdajů[Účetní kód],SouhrnMěsíčníchVýdajů[[#This Row],[Účetní kód]],PodrobnýRozpisVýdajů[Datum fakturace],\">=\"&K$3,PodrobnýRozpisVýdajů[Datum fakturace],\"<=\"&K$4)+SUMIFS(Jiné[Zaplacená částka],Jiné[Účetní kód],SouhrnMěsíčníchVýdajů[[#This Row],[Účetní kód]],Jiné[Datum vyžádání částky],\">=\"&DATEVALUE(\"1.\"&SouhrnMěsíčníchVýdajů[[#Headers],[Srpen]]&_xlfn.SINGLE(_ROK)),Jiné[Datum vyžádání částky],\"<=\"&K$4)","v":{"v":0,"d":"0.00 Kč"}},{"$f":"SUMIFS(PodrobnýRozpisVýdajů[Zaplacená částka],PodrobnýRozpisVýdajů[Účetní kód],SouhrnMěsíčníchVýdajů[[#This Row],[Účetní kód]],PodrobnýRozpisVýdajů[Datum fakturace],\">=\"&L$3,PodrobnýRozpisVýdajů[Datum fakturace],\"<=\"&L$4)+SUMIFS(Jiné[Zaplacená částka],Jiné[Účetní kód],SouhrnMěsíčníchVýdajů[[#This Row],[Účetní kód]],Jiné[Datum vyžádání částky],\">=\"&DATEVALUE(\"1.\"&SouhrnMěsíčníchVýdajů[[#Headers],[Září]]&_xlfn.SINGLE(_ROK)),Jiné[Datum vyžádání částky],\"<=\"&L$4)","v":{"v":0,"d":"0.00 Kč"}},{"$f":"SUMIFS(PodrobnýRozpisVýdajů[Zaplacená částka],PodrobnýRozpisVýdajů[Účetní kód],SouhrnMěsíčníchVýdajů[[#This Row],[Účetní kód]],PodrobnýRozpisVýdajů[Datum fakturace],\">=\"&M$3,PodrobnýRozpisVýdajů[Datum fakturace],\"<=\"&M$4)+SUMIFS(Jiné[Zaplacená částka],Jiné[Účetní kód],SouhrnMěsíčníchVýdajů[[#This Row],[Účetní kód]],Jiné[Datum vyžádání částky],\">=\"&DATEVALUE(\"1.\"&SouhrnMěsíčníchVýdajů[[#Headers],[Říjen]]&_xlfn.SINGLE(_ROK)),Jiné[Datum vyžádání částky],\"<=\"&M$4)","v":{"v":0,"d":"0.00 Kč"}},{"$f":"SUMIFS(PodrobnýRozpisVýdajů[Zaplacená částka],PodrobnýRozpisVýdajů[Účetní kód],SouhrnMěsíčníchVýdajů[[#This Row],[Účetní kód]],PodrobnýRozpisVýdajů[Datum fakturace],\">=\"&N$3,PodrobnýRozpisVýdajů[Datum fakturace],\"<=\"&N$4)+SUMIFS(Jiné[Zaplacená částka],Jiné[Účetní kód],SouhrnMěsíčníchVýdajů[[#This Row],[Účetní kód]],Jiné[Datum vyžádání částky],\">=\"&DATEVALUE(\"1.\"&SouhrnMěsíčníchVýdajů[[#Headers],[Listopad]]&_xlfn.SINGLE(_ROK)),Jiné[Datum vyžádání částky],\"<=\"&N$4)","v":{"v":0,"d":"0.00 Kč"}},{"$f":"SUMIFS(PodrobnýRozpisVýdajů[Zaplacená částka],PodrobnýRozpisVýdajů[Účetní kód],SouhrnMěsíčníchVýdajů[[#This Row],[Účetní kód]],PodrobnýRozpisVýdajů[Datum fakturace],\">=\"&O$3,PodrobnýRozpisVýdajů[Datum fakturace],\"<=\"&O$4)+SUMIFS(Jiné[Zaplacená částka],Jiné[Účetní kód],SouhrnMěsíčníchVýdajů[[#This Row],[Účetní kód]],Jiné[Datum vyžádání částky],\">=\"&DATEVALUE(\"1.\"&SouhrnMěsíčníchVýdajů[[#Headers],[Prosinec]]&_xlfn.SINGLE(_ROK)),Jiné[Datum vyžádání částky],\"<=\"&O$4)","v":{"v":0,"d":"0.00 Kč"}},{"$f":"SUM(SouhrnMěsíčníchVýdajů[[#This Row],[Leden]:[Prosinec]])","v":{"v":0,"d":"0.00 Kč"}}]
[null,9000,"Stavební náklady",{"$f":"SUMIFS(PodrobnýRozpisVýdajů[Zaplacená částka],PodrobnýRozpisVýdajů[Účetní kód],SouhrnMěsíčníchVýdajů[[#This Row],[Účetní kód]],PodrobnýRozpisVýdajů[Datum fakturace],\">=\"&D$3,PodrobnýRozpisVýdajů[Datum fakturace],\"<=\"&D$4)+SUMIFS(Jiné[Zaplacená částka],Jiné[Účetní kód],SouhrnMěsíčníchVýdajů[[#This Row],[Účetní kód]],Jiné[Datum vyžádání částky],\">=\"&DATEVALUE(\"1.\"&SouhrnMěsíčníchVýdajů[[#Headers],[Leden]]&_xlfn.SINGLE(_ROK)),Jiné[Datum vyžádání částky],\"<=\"&D$4)","v":{"v":0,"d":"0.00 Kč"}},{"$f":"SUMIFS(PodrobnýRozpisVýdajů[Zaplacená částka],PodrobnýRozpisVýdajů[Účetní kód],SouhrnMěsíčníchVýdajů[[#This Row],[Účetní kód]],PodrobnýRozpisVýdajů[Datum fakturace],\">=\"&E$3,PodrobnýRozpisVýdajů[Datum fakturace],\"<=\"&E$4)+SUMIFS(Jiné[Zaplacená částka],Jiné[Účetní kód],SouhrnMěsíčníchVýdajů[[#This Row],[Účetní kód]],Jiné[Datum vyžádání částky],\">=\"&DATEVALUE(\"1.\"&SouhrnMěsíčníchVýdajů[[#Headers],[Únor]]&_xlfn.SINGLE(_ROK)),Jiné[Datum vyžádání částky],\"<=\"&E$4)","v":{"v":0,"d":"0.00 Kč"}},{"$f":"SUMIFS(PodrobnýRozpisVýdajů[Zaplacená částka],PodrobnýRozpisVýdajů[Účetní kód],SouhrnMěsíčníchVýdajů[[#This Row],[Účetní kód]],PodrobnýRozpisVýdajů[Datum fakturace],\">=\"&F$3,PodrobnýRozpisVýdajů[Datum fakturace],\"<=\"&F$4)+SUMIFS(Jiné[Zaplacená částka],Jiné[Účetní kód],SouhrnMěsíčníchVýdajů[[#This Row],[Účetní kód]],Jiné[Datum vyžádání částky],\">=\"&DATEVALUE(\"1.\"&SouhrnMěsíčníchVýdajů[[#Headers],[Březen]]&_xlfn.SINGLE(_ROK)),Jiné[Datum vyžádání částky],\"<=\"&F$4)","v":{"v":0,"d":"0.00 Kč"}},{"$f":"SUMIFS(PodrobnýRozpisVýdajů[Zaplacená částka],PodrobnýRozpisVýdajů[Účetní kód],SouhrnMěsíčníchVýdajů[[#This Row],[Účetní kód]],PodrobnýRozpisVýdajů[Datum fakturace],\">=\"&G$3,PodrobnýRozpisVýdajů[Datum fakturace],\"<=\"&G$4)+SUMIFS(Jiné[Zaplacená částka],Jiné[Účetní kód],SouhrnMěsíčníchVýdajů[[#This Row],[Účetní kód]],Jiné[Datum vyžádání částky],\">=\"&DATEVALUE(\"1.\"&SouhrnMěsíčníchVýdajů[[#Headers],[Duben]]&_xlfn.SINGLE(_ROK)),Jiné[Datum vyžádání částky],\"<=\"&G$4)","v":{"v":0,"d":"0.00 Kč"}},{"$f":"SUMIFS(PodrobnýRozpisVýdajů[Zaplacená částka],PodrobnýRozpisVýdajů[Účetní kód],SouhrnMěsíčníchVýdajů[[#This Row],[Účetní kód]],PodrobnýRozpisVýdajů[Datum fakturace],\">=\"&H$3,PodrobnýRozpisVýdajů[Datum fakturace],\"<=\"&H$4)+SUMIFS(Jiné[Zaplacená částka],Jiné[Účetní kód],SouhrnMěsíčníchVýdajů[[#This Row],[Účetní kód]],Jiné[Datum vyžádání částky],\">=\"&DATEVALUE(\"1.\"&SouhrnMěsíčníchVýdajů[[#Headers],[Květen]]&_xlfn.SINGLE(_ROK)),Jiné[Datum vyžádání částky],\"<=\"&H$4)","v":{"v":0,"d":"0.00 Kč"}},{"$f":"SUMIFS(PodrobnýRozpisVýdajů[Zaplacená částka],PodrobnýRozpisVýdajů[Účetní kód],SouhrnMěsíčníchVýdajů[[#This Row],[Účetní kód]],PodrobnýRozpisVýdajů[Datum fakturace],\">=\"&I$3,PodrobnýRozpisVýdajů[Datum fakturace],\"<=\"&I$4)+SUMIFS(Jiné[Zaplacená částka],Jiné[Účetní kód],SouhrnMěsíčníchVýdajů[[#This Row],[Účetní kód]],Jiné[Datum vyžádání částky],\">=\"&DATEVALUE(\"1.\"&SouhrnMěsíčníchVýdajů[[#Headers],[Červen]]&_xlfn.SINGLE(_ROK)),Jiné[Datum vyžádání částky],\"<=\"&I$4)","v":{"v":0,"d":"0.00 Kč"}},{"$f":"SUMIFS(PodrobnýRozpisVýdajů[Zaplacená částka],PodrobnýRozpisVýdajů[Účetní kód],SouhrnMěsíčníchVýdajů[[#This Row],[Účetní kód]],PodrobnýRozpisVýdajů[Datum fakturace],\">=\"&J$3,PodrobnýRozpisVýdajů[Datum fakturace],\"<=\"&J$4)+SUMIFS(Jiné[Zaplacená částka],Jiné[Účetní kód],SouhrnMěsíčníchVýdajů[[#This Row],[Účetní kód]],Jiné[Datum vyžádání částky],\">=\"&DATEVALUE(\"1.\"&SouhrnMěsíčníchVýdajů[[#Headers],[Červenec]]&_xlfn.SINGLE(_ROK)),Jiné[Datum vyžádání částky],\"<=\"&J$4)","v":{"v":0,"d":"0.00 Kč"}},{"$f":"SUMIFS(PodrobnýRozpisVýdajů[Zaplacená částka],PodrobnýRozpisVýdajů[Účetní kód],SouhrnMěsíčníchVýdajů[[#This Row],[Účetní kód]],PodrobnýRozpisVýdajů[Datum fakturace],\">=\"&K$3,PodrobnýRozpisVýdajů[Datum fakturace],\"<=\"&K$4)+SUMIFS(Jiné[Zaplacená částka],Jiné[Účetní kód],SouhrnMěsíčníchVýdajů[[#This Row],[Účetní kód]],Jiné[Datum vyžádání částky],\">=\"&DATEVALUE(\"1.\"&SouhrnMěsíčníchVýdajů[[#Headers],[Srpen]]&_xlfn.SINGLE(_ROK)),Jiné[Datum vyžádání částky],\"<=\"&K$4)","v":{"v":0,"d":"0.00 Kč"}},{"$f":"SUMIFS(PodrobnýRozpisVýdajů[Zaplacená částka],PodrobnýRozpisVýdajů[Účetní kód],SouhrnMěsíčníchVýdajů[[#This Row],[Účetní kód]],PodrobnýRozpisVýdajů[Datum fakturace],\">=\"&L$3,PodrobnýRozpisVýdajů[Datum fakturace],\"<=\"&L$4)+SUMIFS(Jiné[Zaplacená částka],Jiné[Účetní kód],SouhrnMěsíčníchVýdajů[[#This Row],[Účetní kód]],Jiné[Datum vyžádání částky],\">=\"&DATEVALUE(\"1.\"&SouhrnMěsíčníchVýdajů[[#Headers],[Září]]&_xlfn.SINGLE(_ROK)),Jiné[Datum vyžádání částky],\"<=\"&L$4)","v":{"v":0,"d":"0.00 Kč"}},{"$f":"SUMIFS(PodrobnýRozpisVýdajů[Zaplacená částka],PodrobnýRozpisVýdajů[Účetní kód],SouhrnMěsíčníchVýdajů[[#This Row],[Účetní kód]],PodrobnýRozpisVýdajů[Datum fakturace],\">=\"&M$3,PodrobnýRozpisVýdajů[Datum fakturace],\"<=\"&M$4)+SUMIFS(Jiné[Zaplacená částka],Jiné[Účetní kód],SouhrnMěsíčníchVýdajů[[#This Row],[Účetní kód]],Jiné[Datum vyžádání částky],\">=\"&DATEVALUE(\"1.\"&SouhrnMěsíčníchVýdajů[[#Headers],[Říjen]]&_xlfn.SINGLE(_ROK)),Jiné[Datum vyžádání částky],\"<=\"&M$4)","v":{"v":0,"d":"0.00 Kč"}},{"$f":"SUMIFS(PodrobnýRozpisVýdajů[Zaplacená částka],PodrobnýRozpisVýdajů[Účetní kód],SouhrnMěsíčníchVýdajů[[#This Row],[Účetní kód]],PodrobnýRozpisVýdajů[Datum fakturace],\">=\"&N$3,PodrobnýRozpisVýdajů[Datum fakturace],\"<=\"&N$4)+SUMIFS(Jiné[Zaplacená částka],Jiné[Účetní kód],SouhrnMěsíčníchVýdajů[[#This Row],[Účetní kód]],Jiné[Datum vyžádání částky],\">=\"&DATEVALUE(\"1.\"&SouhrnMěsíčníchVýdajů[[#Headers],[Listopad]]&_xlfn.SINGLE(_ROK)),Jiné[Datum vyžádání částky],\"<=\"&N$4)","v":{"v":0,"d":"0.00 Kč"}},{"$f":"SUMIFS(PodrobnýRozpisVýdajů[Zaplacená částka],PodrobnýRozpisVýdajů[Účetní kód],SouhrnMěsíčníchVýdajů[[#This Row],[Účetní kód]],PodrobnýRozpisVýdajů[Datum fakturace],\">=\"&O$3,PodrobnýRozpisVýdajů[Datum fakturace],\"<=\"&O$4)+SUMIFS(Jiné[Zaplacená částka],Jiné[Účetní kód],SouhrnMěsíčníchVýdajů[[#This Row],[Účetní kód]],Jiné[Datum vyžádání částky],\">=\"&DATEVALUE(\"1.\"&SouhrnMěsíčníchVýdajů[[#Headers],[Prosinec]]&_xlfn.SINGLE(_ROK)),Jiné[Datum vyžádání částky],\"<=\"&O$4)","v":{"v":0,"d":"0.00 Kč"}},{"$f":"SUM(SouhrnMěsíčníchVýdajů[[#This Row],[Leden]:[Prosinec]])","v":{"v":0,"d":"0.00 Kč"}}]
[null,10000,"Marketing",{"$f":"SUMIFS(PodrobnýRozpisVýdajů[Zaplacená částka],PodrobnýRozpisVýdajů[Účetní kód],SouhrnMěsíčníchVýdajů[[#This Row],[Účetní kód]],PodrobnýRozpisVýdajů[Datum fakturace],\">=\"&D$3,PodrobnýRozpisVýdajů[Datum fakturace],\"<=\"&D$4)+SUMIFS(Jiné[Zaplacená částka],Jiné[Účetní kód],SouhrnMěsíčníchVýdajů[[#This Row],[Účetní kód]],Jiné[Datum vyžádání částky],\">=\"&DATEVALUE(\"1.\"&SouhrnMěsíčníchVýdajů[[#Headers],[Leden]]&_xlfn.SINGLE(_ROK)),Jiné[Datum vyžádání částky],\"<=\"&D$4)","v":{"v":0,"d":"0.00 Kč"}},{"$f":"SUMIFS(PodrobnýRozpisVýdajů[Zaplacená částka],PodrobnýRozpisVýdajů[Účetní kód],SouhrnMěsíčníchVýdajů[[#This Row],[Účetní kód]],PodrobnýRozpisVýdajů[Datum fakturace],\">=\"&E$3,PodrobnýRozpisVýdajů[Datum fakturace],\"<=\"&E$4)+SUMIFS(Jiné[Zaplacená částka],Jiné[Účetní kód],SouhrnMěsíčníchVýdajů[[#This Row],[Účetní kód]],Jiné[Datum vyžádání částky],\">=\"&DATEVALUE(\"1.\"&SouhrnMěsíčníchVýdajů[[#Headers],[Únor]]&_xlfn.SINGLE(_ROK)),Jiné[Datum vyžádání částky],\"<=\"&E$4)","v":{"v":0,"d":"0.00 Kč"}},{"$f":"SUMIFS(PodrobnýRozpisVýdajů[Zaplacená částka],PodrobnýRozpisVýdajů[Účetní kód],SouhrnMěsíčníchVýdajů[[#This Row],[Účetní kód]],PodrobnýRozpisVýdajů[Datum fakturace],\">=\"&F$3,PodrobnýRozpisVýdajů[Datum fakturace],\"<=\"&F$4)+SUMIFS(Jiné[Zaplacená částka],Jiné[Účetní kód],SouhrnMěsíčníchVýdajů[[#This Row],[Účetní kód]],Jiné[Datum vyžádání částky],\">=\"&DATEVALUE(\"1.\"&SouhrnMěsíčníchVýdajů[[#Headers],[Březen]]&_xlfn.SINGLE(_ROK)),Jiné[Datum vyžádání částky],\"<=\"&F$4)","v":{"v":0,"d":"0.00 Kč"}},{"$f":"SUMIFS(PodrobnýRozpisVýdajů[Zaplacená částka],PodrobnýRozpisVýdajů[Účetní kód],SouhrnMěsíčníchVýdajů[[#This Row],[Účetní kód]],PodrobnýRozpisVýdajů[Datum fakturace],\">=\"&G$3,PodrobnýRozpisVýdajů[Datum fakturace],\"<=\"&G$4)+SUMIFS(Jiné[Zaplacená částka],Jiné[Účetní kód],SouhrnMěsíčníchVýdajů[[#This Row],[Účetní kód]],Jiné[Datum vyžádání částky],\">=\"&DATEVALUE(\"1.\"&SouhrnMěsíčníchVýdajů[[#Headers],[Duben]]&_xlfn.SINGLE(_ROK)),Jiné[Datum vyžádání částky],\"<=\"&G$4)","v":{"v":0,"d":"0.00 Kč"}},{"$f":"SUMIFS(PodrobnýRozpisVýdajů[Zaplacená částka],PodrobnýRozpisVýdajů[Účetní kód],SouhrnMěsíčníchVýdajů[[#This Row],[Účetní kód]],PodrobnýRozpisVýdajů[Datum fakturace],\">=\"&H$3,PodrobnýRozpisVýdajů[Datum fakturace],\"<=\"&H$4)+SUMIFS(Jiné[Zaplacená částka],Jiné[Účetní kód],SouhrnMěsíčníchVýdajů[[#This Row],[Účetní kód]],Jiné[Datum vyžádání částky],\">=\"&DATEVALUE(\"1.\"&SouhrnMěsíčníchVýdajů[[#Headers],[Květen]]&_xlfn.SINGLE(_ROK)),Jiné[Datum vyžádání částky],\"<=\"&H$4)","v":{"v":0,"d":"0.00 Kč"}},{"$f":"SUMIFS(PodrobnýRozpisVýdajů[Zaplacená částka],PodrobnýRozpisVýdajů[Účetní kód],SouhrnMěsíčníchVýdajů[[#This Row],[Účetní kód]],PodrobnýRozpisVýdajů[Datum fakturace],\">=\"&I$3,PodrobnýRozpisVýdajů[Datum fakturace],\"<=\"&I$4)+SUMIFS(Jiné[Zaplacená částka],Jiné[Účetní kód],SouhrnMěsíčníchVýdajů[[#This Row],[Účetní kód]],Jiné[Datum vyžádání částky],\">=\"&DATEVALUE(\"1.\"&SouhrnMěsíčníchVýdajů[[#Headers],[Červen]]&_xlfn.SINGLE(_ROK)),Jiné[Datum vyžádání částky],\"<=\"&I$4)","v":{"v":0,"d":"0.00 Kč"}},{"$f":"SUMIFS(PodrobnýRozpisVýdajů[Zaplacená částka],PodrobnýRozpisVýdajů[Účetní kód],SouhrnMěsíčníchVýdajů[[#This Row],[Účetní kód]],PodrobnýRozpisVýdajů[Datum fakturace],\">=\"&J$3,PodrobnýRozpisVýdajů[Datum fakturace],\"<=\"&J$4)+SUMIFS(Jiné[Zaplacená částka],Jiné[Účetní kód],SouhrnMěsíčníchVýdajů[[#This Row],[Účetní kód]],Jiné[Datum vyžádání částky],\">=\"&DATEVALUE(\"1.\"&SouhrnMěsíčníchVýdajů[[#Headers],[Červenec]]&_xlfn.SINGLE(_ROK)),Jiné[Datum vyžádání částky],\"<=\"&J$4)","v":{"v":0,"d":"0.00 Kč"}},{"$f":"SUMIFS(PodrobnýRozpisVýdajů[Zaplacená částka],PodrobnýRozpisVýdajů[Účetní kód],SouhrnMěsíčníchVýdajů[[#This Row],[Účetní kód]],PodrobnýRozpisVýdajů[Datum fakturace],\">=\"&K$3,PodrobnýRozpisVýdajů[Datum fakturace],\"<=\"&K$4)+SUMIFS(Jiné[Zaplacená částka],Jiné[Účetní kód],SouhrnMěsíčníchVýdajů[[#This Row],[Účetní kód]],Jiné[Datum vyžádání částky],\">=\"&DATEVALUE(\"1.\"&SouhrnMěsíčníchVýdajů[[#Headers],[Srpen]]&_xlfn.SINGLE(_ROK)),Jiné[Datum vyžádání částky],\"<=\"&K$4)","v":{"v":0,"d":"0.00 Kč"}},{"$f":"SUMIFS(PodrobnýRozpisVýdajů[Zaplacená částka],PodrobnýRozpisVýdajů[Účetní kód],SouhrnMěsíčníchVýdajů[[#This Row],[Účetní kód]],PodrobnýRozpisVýdajů[Datum fakturace],\">=\"&L$3,PodrobnýRozpisVýdajů[Datum fakturace],\"<=\"&L$4)+SUMIFS(Jiné[Zaplacená částka],Jiné[Účetní kód],SouhrnMěsíčníchVýdajů[[#This Row],[Účetní kód]],Jiné[Datum vyžádání částky],\">=\"&DATEVALUE(\"1.\"&SouhrnMěsíčníchVýdajů[[#Headers],[Září]]&_xlfn.SINGLE(_ROK)),Jiné[Datum vyžádání částky],\"<=\"&L$4)","v":{"v":0,"d":"0.00 Kč"}},{"$f":"SUMIFS(PodrobnýRozpisVýdajů[Zaplacená částka],PodrobnýRozpisVýdajů[Účetní kód],SouhrnMěsíčníchVýdajů[[#This Row],[Účetní kód]],PodrobnýRozpisVýdajů[Datum fakturace],\">=\"&M$3,PodrobnýRozpisVýdajů[Datum fakturace],\"<=\"&M$4)+SUMIFS(Jiné[Zaplacená částka],Jiné[Účetní kód],SouhrnMěsíčníchVýdajů[[#This Row],[Účetní kód]],Jiné[Datum vyžádání částky],\">=\"&DATEVALUE(\"1.\"&SouhrnMěsíčníchVýdajů[[#Headers],[Říjen]]&_xlfn.SINGLE(_ROK)),Jiné[Datum vyžádání částky],\"<=\"&M$4)","v":{"v":0,"d":"0.00 Kč"}},{"$f":"SUMIFS(PodrobnýRozpisVýdajů[Zaplacená částka],PodrobnýRozpisVýdajů[Účetní kód],SouhrnMěsíčníchVýdajů[[#This Row],[Účetní kód]],PodrobnýRozpisVýdajů[Datum fakturace],\">=\"&N$3,PodrobnýRozpisVýdajů[Datum fakturace],\"<=\"&N$4)+SUMIFS(Jiné[Zaplacená částka],Jiné[Účetní kód],SouhrnMěsíčníchVýdajů[[#This Row],[Účetní kód]],Jiné[Datum vyžádání částky],\">=\"&DATEVALUE(\"1.\"&SouhrnMěsíčníchVýdajů[[#Headers],[Listopad]]&_xlfn.SINGLE(_ROK)),Jiné[Datum vyžádání částky],\"<=\"&N$4)","v":{"v":0,"d":"0.00 Kč"}},{"$f":"SUMIFS(PodrobnýRozpisVýdajů[Zaplacená částka],PodrobnýRozpisVýdajů[Účetní kód],SouhrnMěsíčníchVýdajů[[#This Row],[Účetní kód]],PodrobnýRozpisVýdajů[Datum fakturace],\">=\"&O$3,PodrobnýRozpisVýdajů[Datum fakturace],\"<=\"&O$4)+SUMIFS(Jiné[Zaplacená částka],Jiné[Účetní kód],SouhrnMěsíčníchVýdajů[[#This Row],[Účetní kód]],Jiné[Datum vyžádání částky],\">=\"&DATEVALUE(\"1.\"&SouhrnMěsíčníchVýdajů[[#Headers],[Prosinec]]&_xlfn.SINGLE(_ROK)),Jiné[Datum vyžádání částky],\"<=\"&O$4)","v":{"v":0,"d":"0.00 Kč"}},{"$f":"SUM(SouhrnMěsíčníchVýdajů[[#This Row],[Leden]:[Prosinec]])","v":{"v":0,"d":"0.00 Kč"}}]
[null,11000,"Charita",{"$f":"SUMIFS(PodrobnýRozpisVýdajů[Zaplacená částka],PodrobnýRozpisVýdajů[Účetní kód],SouhrnMěsíčníchVýdajů[[#This Row],[Účetní kód]],PodrobnýRozpisVýdajů[Datum fakturace],\">=\"&D$3,PodrobnýRozpisVýdajů[Datum fakturace],\"<=\"&D$4)+SUMIFS(Jiné[Zaplacená částka],Jiné[Účetní kód],SouhrnMěsíčníchVýdajů[[#This Row],[Účetní kód]],Jiné[Datum vyžádání částky],\">=\"&DATEVALUE(\"1.\"&SouhrnMěsíčníchVýdajů[[#Headers],[Leden]]&_xlfn.SINGLE(_ROK)),Jiné[Datum vyžádání částky],\"<=\"&D$4)","v":{"v":0,"d":"0.00 Kč"}},{"$f":"SUMIFS(PodrobnýRozpisVýdajů[Zaplacená částka],PodrobnýRozpisVýdajů[Účetní kód],SouhrnMěsíčníchVýdajů[[#This Row],[Účetní kód]],PodrobnýRozpisVýdajů[Datum fakturace],\">=\"&E$3,PodrobnýRozpisVýdajů[Datum fakturace],\"<=\"&E$4)+SUMIFS(Jiné[Zaplacená částka],Jiné[Účetní kód],SouhrnMěsíčníchVýdajů[[#This Row],[Účetní kód]],Jiné[Datum vyžádání částky],\">=\"&DATEVALUE(\"1.\"&SouhrnMěsíčníchVýdajů[[#Headers],[Únor]]&_xlfn.SINGLE(_ROK)),Jiné[Datum vyžádání částky],\"<=\"&E$4)","v":{"v":0,"d":"0.00 Kč"}},{"$f":"SUMIFS(PodrobnýRozpisVýdajů[Zaplacená částka],PodrobnýRozpisVýdajů[Účetní kód],SouhrnMěsíčníchVýdajů[[#This Row],[Účetní kód]],PodrobnýRozpisVýdajů[Datum fakturace],\">=\"&F$3,PodrobnýRozpisVýdajů[Datum fakturace],\"<=\"&F$4)+SUMIFS(Jiné[Zaplacená částka],Jiné[Účetní kód],SouhrnMěsíčníchVýdajů[[#This Row],[Účetní kód]],Jiné[Datum vyžádání částky],\">=\"&DATEVALUE(\"1.\"&SouhrnMěsíčníchVýdajů[[#Headers],[Březen]]&_xlfn.SINGLE(_ROK)),Jiné[Datum vyžádání částky],\"<=\"&F$4)","v":{"v":0,"d":"0.00 Kč"}},{"$f":"SUMIFS(PodrobnýRozpisVýdajů[Zaplacená částka],PodrobnýRozpisVýdajů[Účetní kód],SouhrnMěsíčníchVýdajů[[#This Row],[Účetní kód]],PodrobnýRozpisVýdajů[Datum fakturace],\">=\"&G$3,PodrobnýRozpisVýdajů[Datum fakturace],\"<=\"&G$4)+SUMIFS(Jiné[Zaplacená částka],Jiné[Účetní kód],SouhrnMěsíčníchVýdajů[[#This Row],[Účetní kód]],Jiné[Datum vyžádání částky],\">=\"&DATEVALUE(\"1.\"&SouhrnMěsíčníchVýdajů[[#Headers],[Duben]]&_xlfn.SINGLE(_ROK)),Jiné[Datum vyžádání částky],\"<=\"&G$4)","v":{"v":0,"d":"0.00 Kč"}},{"$f":"SUMIFS(PodrobnýRozpisVýdajů[Zaplacená částka],PodrobnýRozpisVýdajů[Účetní kód],SouhrnMěsíčníchVýdajů[[#This Row],[Účetní kód]],PodrobnýRozpisVýdajů[Datum fakturace],\">=\"&H$3,PodrobnýRozpisVýdajů[Datum fakturace],\"<=\"&H$4)+SUMIFS(Jiné[Zaplacená částka],Jiné[Účetní kód],SouhrnMěsíčníchVýdajů[[#This Row],[Účetní kód]],Jiné[Datum vyžádání částky],\">=\"&DATEVALUE(\"1.\"&SouhrnMěsíčníchVýdajů[[#Headers],[Květen]]&_xlfn.SINGLE(_ROK)),Jiné[Datum vyžádání částky],\"<=\"&H$4)","v":{"v":0,"d":"0.00 Kč"}},{"$f":"SUMIFS(PodrobnýRozpisVýdajů[Zaplacená částka],PodrobnýRozpisVýdajů[Účetní kód],SouhrnMěsíčníchVýdajů[[#This Row],[Účetní kód]],PodrobnýRozpisVýdajů[Datum fakturace],\">=\"&I$3,PodrobnýRozpisVýdajů[Datum fakturace],\"<=\"&I$4)+SUMIFS(Jiné[Zaplacená částka],Jiné[Účetní kód],SouhrnMěsíčníchVýdajů[[#This Row],[Účetní kód]],Jiné[Datum vyžádání částky],\">=\"&DATEVALUE(\"1.\"&SouhrnMěsíčníchVýdajů[[#Headers],[Červen]]&_xlfn.SINGLE(_ROK)),Jiné[Datum vyžádání částky],\"<=\"&I$4)","v":{"v":0,"d":"0.00 Kč"}},{"$f":"SUMIFS(PodrobnýRozpisVýdajů[Zaplacená částka],PodrobnýRozpisVýdajů[Účetní kód],SouhrnMěsíčníchVýdajů[[#This Row],[Účetní kód]],PodrobnýRozpisVýdajů[Datum fakturace],\">=\"&J$3,PodrobnýRozpisVýdajů[Datum fakturace],\"<=\"&J$4)+SUMIFS(Jiné[Zaplacená částka],Jiné[Účetní kód],SouhrnMěsíčníchVýdajů[[#This Row],[Účetní kód]],Jiné[Datum vyžádání částky],\">=\"&DATEVALUE(\"1.\"&SouhrnMěsíčníchVýdajů[[#Headers],[Červenec]]&_xlfn.SINGLE(_ROK)),Jiné[Datum vyžádání částky],\"<=\"&J$4)","v":{"v":0,"d":"0.00 Kč"}},{"$f":"SUMIFS(PodrobnýRozpisVýdajů[Zaplacená částka],PodrobnýRozpisVýdajů[Účetní kód],SouhrnMěsíčníchVýdajů[[#This Row],[Účetní kód]],PodrobnýRozpisVýdajů[Datum fakturace],\">=\"&K$3,PodrobnýRozpisVýdajů[Datum fakturace],\"<=\"&K$4)+SUMIFS(Jiné[Zaplacená částka],Jiné[Účetní kód],SouhrnMěsíčníchVýdajů[[#This Row],[Účetní kód]],Jiné[Datum vyžádání částky],\">=\"&DATEVALUE(\"1.\"&SouhrnMěsíčníchVýdajů[[#Headers],[Srpen]]&_xlfn.SINGLE(_ROK)),Jiné[Datum vyžádání částky],\"<=\"&K$4)","v":{"v":0,"d":"0.00 Kč"}},{"$f":"SUMIFS(PodrobnýRozpisVýdajů[Zaplacená částka],PodrobnýRozpisVýdajů[Účetní kód],SouhrnMěsíčníchVýdajů[[#This Row],[Účetní kód]],PodrobnýRozpisVýdajů[Datum fakturace],\">=\"&L$3,PodrobnýRozpisVýdajů[Datum fakturace],\"<=\"&L$4)+SUMIFS(Jiné[Zaplacená částka],Jiné[Účetní kód],SouhrnMěsíčníchVýdajů[[#This Row],[Účetní kód]],Jiné[Datum vyžádání částky],\">=\"&DATEVALUE(\"1.\"&SouhrnMěsíčníchVýdajů[[#Headers],[Září]]&_xlfn.SINGLE(_ROK)),Jiné[Datum vyžádání částky],\"<=\"&L$4)","v":{"v":0,"d":"0.00 Kč"}},{"$f":"SUMIFS(PodrobnýRozpisVýdajů[Zaplacená částka],PodrobnýRozpisVýdajů[Účetní kód],SouhrnMěsíčníchVýdajů[[#This Row],[Účetní kód]],PodrobnýRozpisVýdajů[Datum fakturace],\">=\"&M$3,PodrobnýRozpisVýdajů[Datum fakturace],\"<=\"&M$4)+SUMIFS(Jiné[Zaplacená částka],Jiné[Účetní kód],SouhrnMěsíčníchVýdajů[[#This Row],[Účetní kód]],Jiné[Datum vyžádání částky],\">=\"&DATEVALUE(\"1.\"&SouhrnMěsíčníchVýdajů[[#Headers],[Říjen]]&_xlfn.SINGLE(_ROK)),Jiné[Datum vyžádání částky],\"<=\"&M$4)","v":{"v":0,"d":"0.00 Kč"}},{"$f":"SUMIFS(PodrobnýRozpisVýdajů[Zaplacená částka],PodrobnýRozpisVýdajů[Účetní kód],SouhrnMěsíčníchVýdajů[[#This Row],[Účetní kód]],PodrobnýRozpisVýdajů[Datum fakturace],\">=\"&N$3,PodrobnýRozpisVýdajů[Datum fakturace],\"<=\"&N$4)+SUMIFS(Jiné[Zaplacená částka],Jiné[Účetní kód],SouhrnMěsíčníchVýdajů[[#This Row],[Účetní kód]],Jiné[Datum vyžádání částky],\">=\"&DATEVALUE(\"1.\"&SouhrnMěsíčníchVýdajů[[#Headers],[Listopad]]&_xlfn.SINGLE(_ROK)),Jiné[Datum vyžádání částky],\"<=\"&N$4)","v":{"v":0,"d":"0.00 Kč"}},{"$f":"SUMIFS(PodrobnýRozpisVýdajů[Zaplacená částka],PodrobnýRozpisVýdajů[Účetní kód],SouhrnMěsíčníchVýdajů[[#This Row],[Účetní kód]],PodrobnýRozpisVýdajů[Datum fakturace],\">=\"&O$3,PodrobnýRozpisVýdajů[Datum fakturace],\"<=\"&O$4)+SUMIFS(Jiné[Zaplacená částka],Jiné[Účetní kód],SouhrnMěsíčníchVýdajů[[#This Row],[Účetní kód]],Jiné[Datum vyžádání částky],\">=\"&DATEVALUE(\"1.\"&SouhrnMěsíčníchVýdajů[[#Headers],[Prosinec]]&_xlfn.SINGLE(_ROK)),Jiné[Datum vyžádání částky],\"<=\"&O$4)","v":{"v":0,"d":"0.00 Kč"}},{"$f":"SUM(SouhrnMěsíčníchVýdajů[[#This Row],[Leden]:[Prosinec]])","v":{"v":0,"d":"0.00 Kč"}}]
[null,12000,"Sponzorské dary",{"$f":"SUMIFS(PodrobnýRozpisVýdajů[Zaplacená částka],PodrobnýRozpisVýdajů[Účetní kód],SouhrnMěsíčníchVýdajů[[#This Row],[Účetní kód]],PodrobnýRozpisVýdajů[Datum fakturace],\">=\"&D$3,PodrobnýRozpisVýdajů[Datum fakturace],\"<=\"&D$4)+SUMIFS(Jiné[Zaplacená částka],Jiné[Účetní kód],SouhrnMěsíčníchVýdajů[[#This Row],[Účetní kód]],Jiné[Datum vyžádání částky],\">=\"&DATEVALUE(\"1.\"&SouhrnMěsíčníchVýdajů[[#Headers],[Leden]]&_xlfn.SINGLE(_ROK)),Jiné[Datum vyžádání částky],\"<=\"&D$4)","v":{"v":0,"d":"0.00 Kč"}},{"$f":"SUMIFS(PodrobnýRozpisVýdajů[Zaplacená částka],PodrobnýRozpisVýdajů[Účetní kód],SouhrnMěsíčníchVýdajů[[#This Row],[Účetní kód]],PodrobnýRozpisVýdajů[Datum fakturace],\">=\"&E$3,PodrobnýRozpisVýdajů[Datum fakturace],\"<=\"&E$4)+SUMIFS(Jiné[Zaplacená částka],Jiné[Účetní kód],SouhrnMěsíčníchVýdajů[[#This Row],[Účetní kód]],Jiné[Datum vyžádání částky],\">=\"&DATEVALUE(\"1.\"&SouhrnMěsíčníchVýdajů[[#Headers],[Únor]]&_xlfn.SINGLE(_ROK)),Jiné[Datum vyžádání částky],\"<=\"&E$4)","v":{"v":0,"d":"0.00 Kč"}},{"$f":"SUMIFS(PodrobnýRozpisVýdajů[Zaplacená částka],PodrobnýRozpisVýdajů[Účetní kód],SouhrnMěsíčníchVýdajů[[#This Row],[Účetní kód]],PodrobnýRozpisVýdajů[Datum fakturace],\">=\"&F$3,PodrobnýRozpisVýdajů[Datum fakturace],\"<=\"&F$4)+SUMIFS(Jiné[Zaplacená částka],Jiné[Účetní kód],SouhrnMěsíčníchVýdajů[[#This Row],[Účetní kód]],Jiné[Datum vyžádání částky],\">=\"&DATEVALUE(\"1.\"&SouhrnMěsíčníchVýdajů[[#Headers],[Březen]]&_xlfn.SINGLE(_ROK)),Jiné[Datum vyžádání částky],\"<=\"&F$4)","v":{"v":0,"d":"0.00 Kč"}},{"$f":"SUMIFS(PodrobnýRozpisVýdajů[Zaplacená částka],PodrobnýRozpisVýdajů[Účetní kód],SouhrnMěsíčníchVýdajů[[#This Row],[Účetní kód]],PodrobnýRozpisVýdajů[Datum fakturace],\">=\"&G$3,PodrobnýRozpisVýdajů[Datum fakturace],\"<=\"&G$4)+SUMIFS(Jiné[Zaplacená částka],Jiné[Účetní kód],SouhrnMěsíčníchVýdajů[[#This Row],[Účetní kód]],Jiné[Datum vyžádání částky],\">=\"&DATEVALUE(\"1.\"&SouhrnMěsíčníchVýdajů[[#Headers],[Duben]]&_xlfn.SINGLE(_ROK)),Jiné[Datum vyžádání částky],\"<=\"&G$4)","v":{"v":0,"d":"0.00 Kč"}},{"$f":"SUMIFS(PodrobnýRozpisVýdajů[Zaplacená částka],PodrobnýRozpisVýdajů[Účetní kód],SouhrnMěsíčníchVýdajů[[#This Row],[Účetní kód]],PodrobnýRozpisVýdajů[Datum fakturace],\">=\"&H$3,PodrobnýRozpisVýdajů[Datum fakturace],\"<=\"&H$4)+SUMIFS(Jiné[Zaplacená částka],Jiné[Účetní kód],SouhrnMěsíčníchVýdajů[[#This Row],[Účetní kód]],Jiné[Datum vyžádání částky],\">=\"&DATEVALUE(\"1.\"&SouhrnMěsíčníchVýdajů[[#Headers],[Květen]]&_xlfn.SINGLE(_ROK)),Jiné[Datum vyžádání částky],\"<=\"&H$4)","v":{"v":0,"d":"0.00 Kč"}},{"$f":"SUMIFS(PodrobnýRozpisVýdajů[Zaplacená částka],PodrobnýRozpisVýdajů[Účetní kód],SouhrnMěsíčníchVýdajů[[#This Row],[Účetní kód]],PodrobnýRozpisVýdajů[Datum fakturace],\">=\"&I$3,PodrobnýRozpisVýdajů[Datum fakturace],\"<=\"&I$4)+SUMIFS(Jiné[Zaplacená částka],Jiné[Účetní kód],SouhrnMěsíčníchVýdajů[[#This Row],[Účetní kód]],Jiné[Datum vyžádání částky],\">=\"&DATEVALUE(\"1.\"&SouhrnMěsíčníchVýdajů[[#Headers],[Červen]]&_xlfn.SINGLE(_ROK)),Jiné[Datum vyžádání částky],\"<=\"&I$4)","v":{"v":0,"d":"0.00 Kč"}},{"$f":"SUMIFS(PodrobnýRozpisVýdajů[Zaplacená částka],PodrobnýRozpisVýdajů[Účetní kód],SouhrnMěsíčníchVýdajů[[#This Row],[Účetní kód]],PodrobnýRozpisVýdajů[Datum fakturace],\">=\"&J$3,PodrobnýRozpisVýdajů[Datum fakturace],\"<=\"&J$4)+SUMIFS(Jiné[Zaplacená částka],Jiné[Účetní kód],SouhrnMěsíčníchVýdajů[[#This Row],[Účetní kód]],Jiné[Datum vyžádání částky],\">=\"&DATEVALUE(\"1.\"&SouhrnMěsíčníchVýdajů[[#Headers],[Červenec]]&_xlfn.SINGLE(_ROK)),Jiné[Datum vyžádání částky],\"<=\"&J$4)","v":{"v":0,"d":"0.00 Kč"}},{"$f":"SUMIFS(PodrobnýRozpisVýdajů[Zaplacená částka],PodrobnýRozpisVýdajů[Účetní kód],SouhrnMěsíčníchVýdajů[[#This Row],[Účetní kód]],PodrobnýRozpisVýdajů[Datum fakturace],\">=\"&K$3,PodrobnýRozpisVýdajů[Datum fakturace],\"<=\"&K$4)+SUMIFS(Jiné[Zaplacená částka],Jiné[Účetní kód],SouhrnMěsíčníchVýdajů[[#This Row],[Účetní kód]],Jiné[Datum vyžádání částky],\">=\"&DATEVALUE(\"1.\"&SouhrnMěsíčníchVýdajů[[#Headers],[Srpen]]&_xlfn.SINGLE(_ROK)),Jiné[Datum vyžádání částky],\"<=\"&K$4)","v":{"v":0,"d":"0.00 Kč"}},{"$f":"SUMIFS(PodrobnýRozpisVýdajů[Zaplacená částka],PodrobnýRozpisVýdajů[Účetní kód],SouhrnMěsíčníchVýdajů[[#This Row],[Účetní kód]],PodrobnýRozpisVýdajů[Datum fakturace],\">=\"&L$3,PodrobnýRozpisVýdajů[Datum fakturace],\"<=\"&L$4)+SUMIFS(Jiné[Zaplacená částka],Jiné[Účetní kód],SouhrnMěsíčníchVýdajů[[#This Row],[Účetní kód]],Jiné[Datum vyžádání částky],\">=\"&DATEVALUE(\"1.\"&SouhrnMěsíčníchVýdajů[[#Headers],[Září]]&_xlfn.SINGLE(_ROK)),Jiné[Datum vyžádání částky],\"<=\"&L$4)","v":{"v":0,"d":"0.00 Kč"}},{"$f":"SUMIFS(PodrobnýRozpisVýdajů[Zaplacená částka],PodrobnýRozpisVýdajů[Účetní kód],SouhrnMěsíčníchVýdajů[[#This Row],[Účetní kód]],PodrobnýRozpisVýdajů[Datum fakturace],\">=\"&M$3,PodrobnýRozpisVýdajů[Datum fakturace],\"<=\"&M$4)+SUMIFS(Jiné[Zaplacená částka],Jiné[Účetní kód],SouhrnMěsíčníchVýdajů[[#This Row],[Účetní kód]],Jiné[Datum vyžádání částky],\">=\"&DATEVALUE(\"1.\"&SouhrnMěsíčníchVýdajů[[#Headers],[Říjen]]&_xlfn.SINGLE(_ROK)),Jiné[Datum vyžádání částky],\"<=\"&M$4)","v":{"v":0,"d":"0.00 Kč"}},{"$f":"SUMIFS(PodrobnýRozpisVýdajů[Zaplacená částka],PodrobnýRozpisVýdajů[Účetní kód],SouhrnMěsíčníchVýdajů[[#This Row],[Účetní kód]],PodrobnýRozpisVýdajů[Datum fakturace],\">=\"&N$3,PodrobnýRozpisVýdajů[Datum fakturace],\"<=\"&N$4)+SUMIFS(Jiné[Zaplacená částka],Jiné[Účetní kód],SouhrnMěsíčníchVýdajů[[#This Row],[Účetní kód]],Jiné[Datum vyžádání částky],\">=\"&DATEVALUE(\"1.\"&SouhrnMěsíčníchVýdajů[[#Headers],[Listopad]]&_xlfn.SINGLE(_ROK)),Jiné[Datum vyžádání částky],\"<=\"&N$4)","v":{"v":0,"d":"0.00 Kč"}},{"$f":"SUMIFS(PodrobnýRozpisVýdajů[Zaplacená částka],PodrobnýRozpisVýdajů[Účetní kód],SouhrnMěsíčníchVýdajů[[#This Row],[Účetní kód]],PodrobnýRozpisVýdajů[Datum fakturace],\">=\"&O$3,PodrobnýRozpisVýdajů[Datum fakturace],\"<=\"&O$4)+SUMIFS(Jiné[Zaplacená částka],Jiné[Účetní kód],SouhrnMěsíčníchVýdajů[[#This Row],[Účetní kód]],Jiné[Datum vyžádání částky],\">=\"&DATEVALUE(\"1.\"&SouhrnMěsíčníchVýdajů[[#Headers],[Prosinec]]&_xlfn.SINGLE(_ROK)),Jiné[Datum vyžádání částky],\"<=\"&O$4)","v":{"v":0,"d":"0.00 Kč"}},{"$f":"SUM(SouhrnMěsíčníchVýdajů[[#This Row],[Leden]:[Prosinec]])","v":{"v":0,"d":"0.00 Kč"}}]
[null,"Celkem",null,{"$f":"SUBTOTAL(109,SouhrnMěsíčníchVýdajů[Leden])","v":{"v":0,"d":"0.00 Kč"}},{"$f":"SUBTOTAL(109,SouhrnMěsíčníchVýdajů[Únor])","v":{"v":0,"d":"0.00 Kč"}},{"$f":"SUBTOTAL(109,SouhrnMěsíčníchVýdajů[Březen])","v":{"v":0,"d":"0.00 Kč"}},{"$f":"SUBTOTAL(109,SouhrnMěsíčníchVýdajů[Duben])","v":{"v":0,"d":"0.00 Kč"}},{"$f":"SUBTOTAL(109,SouhrnMěsíčníchVýdajů[Květen])","v":{"v":0,"d":"0.00 Kč"}},{"$f":"SUBTOTAL(109,SouhrnMěsíčníchVýdajů[Červen])","v":{"v":0,"d":"0.00 Kč"}},{"$f":"SUBTOTAL(109,SouhrnMěsíčníchVýdajů[Červenec])","v":{"v":0,"d":"0.00 Kč"}},{"$f":"SUBTOTAL(109,SouhrnMěsíčníchVýdajů[Srpen])","v":{"v":0,"d":"0.00 Kč"}},{"$f":"SUBTOTAL(109,SouhrnMěsíčníchVýdajů[Září])","v":{"v":0,"d":"0.00 Kč"}},{"$f":"SUBTOTAL(109,SouhrnMěsíčníchVýdajů[Říjen])","v":{"v":0,"d":"0.00 Kč"}},{"$f":"SUBTOTAL(109,SouhrnMěsíčníchVýdajů[Listopad])","v":{"v":0,"d":"0.00 Kč"}},{"$f":"SUBTOTAL(109,SouhrnMěsíčníchVýdajů[Prosinec])","v":{"v":0,"d":"0.00 Kč"}},{"$f":"SUBTOTAL(109,SouhrnMěsíčníchVýdajů[Celkem])","v":{"v":0,"d":"0.00 Kč"}}]

{"sheet":"PODROBNÝ ROZPIS VÝDAJŮ","index":2,"n_rows":6,"n_cols":10,"rows_kept":6,"merged":[[1,1,1,9],[2,1,2,5],[2,6,2,9]]}
[null,"SOUHRN MĚSÍČNÍCH VÝDAJŮ","CHARITA A SPONZORSKÉ DARY"]
[null,"PODROBNÝ ROZPIS VÝDAJŮ"]
[null,"V této buňce je průřez k filtrování dat podle pole Žadatel/ka a v buňce vpravo je průřez k filtrování dat podle příjemce platby.",{"$nulls":4},"V této buňce je průřez k filtrování dat podle příjemce platby."]
[null,"Účetní kód","Datum fakturace","Číslo faktury","Žadatel/ka","Zaplacená částka","Příjemce platby","Účel částky","Způsob platby","Datum podání"]
[null,1000,"Datum",100,"Lenka Šťastná",{"v":750.75,"d":"750.75 Kč"},"Kurýr s.r.o. ","Poštovní modul","Poštovní poukázka","Datum"]
[null,7000,"Datum",101,"Matěj Skořepa",{"v":2500,"d":"2,500.00 Kč"},"A. Datum ","2 stolní počítače","Úvěr","Datum"]

{"sheet":"CHARITA A SPONZORSKÉ DARY","index":3,"n_rows":6,"n_cols":12,"rows_kept":6,"merged":[[1,1,1,11],[2,1,2,5],[2,6,2,11]]}
[null,"PODROBNÝ ROZPIS VÝDAJŮ"]
[null,"CHARITA A SPONZORSKÉ DARY"]
[null,"V této buňce je průřez k filtrování dat podle pole Žadatel/ka a v buňce vpravo je průřez k filtrování dat podle příjemce platby.",{"$nulls":4},"V této buňce je průřez k filtrování dat podle příjemce platby."]
[null,"Účetní kód","Datum vyžádání částky","Žadatel/ka","Zaplacená částka","Příspěvek v předchozím roce","Příjemce platby","Účel použití","Podepsal/a","Kategorie","Způsob platby","Datum podání"]
[null,12000,"Datum","Jana Blažková",{"v":1000,"d":"1,000.00 Kč"},{"v":12,"d":"12.00 Kč"},"Umělecká škola ","Stipendia","Kateřina Sýkorová","Umění","Šek","Datum"]
[null,11000,"Datum","Jana Blažková",{"v":2500,"d":"2,500.00 Kč"},{"v":0,"d":"0.00 Kč"},"Hračky s.r.o. ","Komunita","Ludmila Šmídová","Komunita","Šek","Datum"]